Publisher Label,Publisher URI,"Supplier","Net Amount £","Organisational Unit","Merchant Category Code","Purpose","Payment Date"
"Wolverhampton City Council","http://opendatacommunities.org/id/metropolitan-district-council/wolverhampton","AMZN Mktp UK MI4KY4OG4","7.49","SEN Sensory Inclusion","5942","Equipment - Purchase","31/01/2019"
"Wolverhampton City Council","http://opendatacommunities.org/id/metropolitan-district-council/wolverhampton","AMZN Mktp UK MI1YM6O54","8.99","SEN Sensory Inclusion","5942","Equipment - Purchase","31/01/2019"
"Wolverhampton City Council","http://opendatacommunities.org/id/metropolitan-district-council/wolverhampton","AMZN Mktp UK MI1WZ5FM4","46.65","SEN Sensory Inclusion","5942","Equipment - Purchase","31/01/2019"
"Wolverhampton City Council","http://opendatacommunities.org/id/metropolitan-district-council/wolverhampton","Amazon.co.uk MI8EC4F34","138.95","Blakenhall Commty & Healthy Living Ctr","5969","Equipment - Purchase","31/01/2019"
"Wolverhampton City Council","http://opendatacommunities.org/id/metropolitan-district-council/wolverhampton","Amazon.co.uk MI9F58FU4","46.58","Duke Street Bungalows","5969","Equipment - Purchase","31/01/2019"
"Wolverhampton City Council","http://opendatacommunities.org/id/metropolitan-district-council/wolverhampton","SAINSBURYS (2340)","17.60","Civic Centre Catering","5411","Provisions (Not for resale)","31/01/2019"
"Wolverhampton City Council","http://opendatacommunities.org/id/metropolitan-district-council/wolverhampton","B & Q 1243","19.00","Education Catering - General Overheads","5211","Materials","31/01/2019"
"Wolverhampton City Council","http://opendatacommunities.org/id/metropolitan-district-council/wolverhampton","CITY OF WOLVERHAMPTON","25.00","Head of Service - CINCP","9399","Services - Professional Fees","31/01/2019"
"Wolverhampton City Council","http://opendatacommunities.org/id/metropolitan-district-council/wolverhampton","CITY OF WOLVERHAMPTON","12.00","Head of Service - CINCP","9399","Services - Professional Fees","31/01/2019"
"Wolverhampton City Council","http://opendatacommunities.org/id/metropolitan-district-council/wolverhampton","J VAN VLIET BIRMINGHAM","20.80","Creative Studies Delivery Area","5399","Materials for resale","31/01/2019"
"Wolverhampton City Council","http://opendatacommunities.org/id/metropolitan-district-council/wolverhampton","Trainline","9.92","CIN/CP Social Work Unit - Area 8","4112","Section 17","31/01/2019"
"Wolverhampton City Council","http://opendatacommunities.org/id/metropolitan-district-council/wolverhampton","GEN REGISTER OFFICE","-7.71","LAC Transitions Team","9399","Client Allowances","31/01/2019"
"Wolverhampton City Council","http://opendatacommunities.org/id/metropolitan-district-council/wolverhampton","ARGOS LTD","90.00","Key to Inspiration","5310","Equipment - Purchase","31/01/2019"
"Wolverhampton City Council","http://opendatacommunities.org/id/metropolitan-district-council/wolverhampton","Trainline","378.20","Service Director Adults","4112","Public Transport","31/01/2019"
"Wolverhampton City Council","http://opendatacommunities.org/id/metropolitan-district-council/wolverhampton","WWW.WMCA.CO.UK","56.50","IMPACT","9399","Services - Fees and Charges","31/01/2019"
"Wolverhampton City Council","http://opendatacommunities.org/id/metropolitan-district-council/wolverhampton","THE POST OFFICE","220.00","IMPACT","9402","Comms - Postage","31/01/2019"
"Wolverhampton City Council","http://opendatacommunities.org/id/metropolitan-district-council/wolverhampton","DVLA DRIVER ONLINE","34.00","LAC Transitions Team","9399","Services - Fees and Charges","31/01/2019"
"Wolverhampton City Council","http://opendatacommunities.org/id/metropolitan-district-council/wolverhampton","AMFBOWLING.CO.UK","10.00","Youth Offending Team","7997","Educ Trips, Holidays, Outings, Activity","31/01/2019"
"Wolverhampton City Council","http://opendatacommunities.org/id/metropolitan-district-council/wolverhampton","MARK BUTLER GOLF ACADE","11.00","Youth Offending Team","8999","Services - Professional Fees","31/01/2019"
"Wolverhampton City Council","http://opendatacommunities.org/id/metropolitan-district-council/wolverhampton","NATWEST BANK","200.00","CAT","6011","No Recourse to Public Funds","31/01/2019"
"Wolverhampton City Council","http://opendatacommunities.org/id/metropolitan-district-council/wolverhampton","Virgin Trains","16.00","Fostering Team & Allowances","4112","Public Transport","31/01/2019"
"Wolverhampton City Council","http://opendatacommunities.org/id/metropolitan-district-council/wolverhampton","Central Taxis Limited","3.40","LAC Education Team (LACE)","4121","Client Transport","31/01/2019"
"Wolverhampton City Council","http://opendatacommunities.org/id/metropolitan-district-council/wolverhampton","ISO/CS","93.53","Business Continuity & Emergency Planning","2741","Publications","31/01/2019"
"Wolverhampton City Council","http://opendatacommunities.org/id/metropolitan-district-council/wolverhampton","ASDA GROCERIES ONLINE","112.91","Upper Pendeford Farm Childrens Home","5411","Provisions (Not for resale)","31/01/2019"
"Wolverhampton City Council","http://opendatacommunities.org/id/metropolitan-district-council/wolverhampton","CITY OF WOLVERHAMPTON","16.00","LAC Team","9399","Financial Assistance In Exceptional Circ","31/01/2019"
"Wolverhampton City Council","http://opendatacommunities.org/id/metropolitan-district-council/wolverhampton","PARKIN FABRICS LIM","22.10","Creative Studies Delivery Area","5949","Materials","31/01/2019"
"Wolverhampton City Council","http://opendatacommunities.org/id/metropolitan-district-council/wolverhampton","PAYPAL  SIGNWORLD","49.99","Language Studies Delivery Area","8244","Computing - Purchase of Software","31/01/2019"
"Wolverhampton City Council","http://opendatacommunities.org/id/metropolitan-district-council/wolverhampton","AMZN Mktp UK MI10N3OZ4","29.99","Creative Studies Delivery Area","5942","Equipment - Purchase","31/01/2019"
"Wolverhampton City Council","http://opendatacommunities.org/id/metropolitan-district-council/wolverhampton","TVLICENSING.CO.UK","150.50","LAC Transitions Team","7392","Client Allowances","31/01/2019"
"Wolverhampton City Council","http://opendatacommunities.org/id/metropolitan-district-council/wolverhampton","TIMPSON LTD","36.00","Wolverhampton Indoor and Open Market","7251","Fixtures and Fittings - R&M","31/01/2019"
"Wolverhampton City Council","http://opendatacommunities.org/id/metropolitan-district-council/wolverhampton","SCREWFIX DIRECT LT","76.64","Culwell Street Depot","5211","Equipment - Purchase","31/01/2019"
"Wolverhampton City Council","http://opendatacommunities.org/id/metropolitan-district-council/wolverhampton","AMZN Mktp UK MI8WZ4FB4","27.05","SEN Sensory Inclusion","5942","Equipment - Purchase","31/01/2019"
"Wolverhampton City Council","http://opendatacommunities.org/id/metropolitan-district-council/wolverhampton","AMZN Mktp UK MI8QN7OW4","80.38","SEN Sensory Inclusion","5942","Equipment - Purchase","31/01/2019"
"Wolverhampton City Council","http://opendatacommunities.org/id/metropolitan-district-council/wolverhampton","AMZN Mktp UK MI7WP6FL4","16.67","SEN Sensory Inclusion","5942","Equipment - Purchase","31/01/2019"
"Wolverhampton City Council","http://opendatacommunities.org/id/metropolitan-district-council/wolverhampton","AMZN Mktp UK MI4Q33OA4","45.30","SEN Sensory Inclusion","5942","Equipment - Purchase","31/01/2019"
"Wolverhampton City Council","http://opendatacommunities.org/id/metropolitan-district-council/wolverhampton","WICKES","9.64","Specialist Support Service - North","5211","Equipment - R & M","30/01/2019"
"Wolverhampton City Council","http://opendatacommunities.org/id/metropolitan-district-council/wolverhampton","ASDA GROCERIES ONLINE","61.00","Ernest Bold Court","5411","Provisions (Not for resale)","30/01/2019"
"Wolverhampton City Council","http://opendatacommunities.org/id/metropolitan-district-council/wolverhampton","Trainline","95.14","Strategic Financial Services","4112","Public Transport","30/01/2019"
"Wolverhampton City Council","http://opendatacommunities.org/id/metropolitan-district-council/wolverhampton","THE SOLICITORS GROUP","129.00","Central Training","8244","Training Expenses","30/01/2019"
"Wolverhampton City Council","http://opendatacommunities.org/id/metropolitan-district-council/wolverhampton","Amazon.co.uk MI0A98OK4","22.50","Specialist Support Service - North","5969","Equipment - Purchase","30/01/2019"
"Wolverhampton City Council","http://opendatacommunities.org/id/metropolitan-district-council/wolverhampton","PRACTICE EN","129.00","Central Training","7299","Training Expenses","30/01/2019"
"Wolverhampton City Council","http://opendatacommunities.org/id/metropolitan-district-council/wolverhampton","Cash Withdrawal from ATM","200.00","Mental Health Assessment & Care Mgmt","6011","Financial Assistance In Exceptional Circ","30/01/2019"
"Wolverhampton City Council","http://opendatacommunities.org/id/metropolitan-district-council/wolverhampton","TIMPSON LTD","16.00","Meals on Wheels","7251","Fixtures and Fittings - R&M","30/01/2019"
"Wolverhampton City Council","http://opendatacommunities.org/id/metropolitan-district-council/wolverhampton","J VAN VLIET BIRMINGHAM","152.69","Creative Studies Delivery Area","5399","Materials for resale","30/01/2019"
"Wolverhampton City Council","http://opendatacommunities.org/id/metropolitan-district-council/wolverhampton","POST OFFICE COUNTER","33.56","Inclusion Support","9402","Comms - Postage","30/01/2019"
"Wolverhampton City Council","http://opendatacommunities.org/id/metropolitan-district-council/wolverhampton","Virgin Trains","13.50","Mayoral Expenses","4112","Public Transport","30/01/2019"
"Wolverhampton City Council","http://opendatacommunities.org/id/metropolitan-district-council/wolverhampton","NATWEST BANK","200.00","Scrutiny & Transparency","6011","Public Transport","30/01/2019"
"Wolverhampton City Council","http://opendatacommunities.org/id/metropolitan-district-council/wolverhampton","B&M RETAIL","27.06","Key to Inspiration","5310","Equipment - Purchase","30/01/2019"
"Wolverhampton City Council","http://opendatacommunities.org/id/metropolitan-district-council/wolverhampton","IKEA LTD 142 BIRMINGHAM","50.42","Key to Inspiration","5712","Equipment - Purchase","30/01/2019"
"Wolverhampton City Council","http://opendatacommunities.org/id/metropolitan-district-council/wolverhampton","AMZN MKTP UK MI48W0CO4","26.22","Strategic ICTS (ICT Serv Budget)","5942","Equipment - R & M","30/01/2019"
"Wolverhampton City Council","http://opendatacommunities.org/id/metropolitan-district-council/wolverhampton","Trainline","43.24","Director of Education","4112","Public Transport","30/01/2019"
"Wolverhampton City Council","http://opendatacommunities.org/id/metropolitan-district-council/wolverhampton","AMZN MKTP UK MB2EC3YB4","44.37","Private Hire Vehicles","5942","Books","30/01/2019"
"Wolverhampton City Council","http://opendatacommunities.org/id/metropolitan-district-council/wolverhampton","HACHETTE UK DISTRIBUTI","189.39","Art Gallery","5965","Equipment - Purchase","30/01/2019"
"Wolverhampton City Council","http://opendatacommunities.org/id/metropolitan-district-council/wolverhampton","WM MORRISON FOOD.COM","97.88","Discretionary Fund","5411","Materials","30/01/2019"
"Wolverhampton City Council","http://opendatacommunities.org/id/metropolitan-district-council/wolverhampton","LOYD 89 CHURCH STREET","50.00","EIP Locality 2","6011","Grant Payments","30/01/2019"
"Wolverhampton City Council","http://opendatacommunities.org/id/metropolitan-district-council/wolverhampton","NATWEST BANK","200.00","CIN/CP Social Work Unit - Area 3","6011","No Recourse to Public Funds","30/01/2019"
"Wolverhampton City Council","http://opendatacommunities.org/id/metropolitan-district-council/wolverhampton","TESCO STORES 5194","66.58","Towers Outdoor Education Centre","5411","Provisions (Not for resale)","30/01/2019"
"Wolverhampton City Council","http://opendatacommunities.org/id/metropolitan-district-council/wolverhampton","THE BCI FORUM R/T","36.00","Business Continuity & Emergency Planning","5968","Subscriptions","30/01/2019"
"Wolverhampton City Council","http://opendatacommunities.org/id/metropolitan-district-council/wolverhampton","SCREWFIX WOLVERHAM","26.64","Public Conveniences","5211","Materials","30/01/2019"
"Wolverhampton City Council","http://opendatacommunities.org/id/metropolitan-district-council/wolverhampton","TESCO STORES 5194","-66.58","Towers Outdoor Education Centre","5411","Provisions (Not for resale)","30/01/2019"
"Wolverhampton City Council","http://opendatacommunities.org/id/metropolitan-district-council/wolverhampton","CUMMINGS BROTHERS LOCK","5.00","Caretakers Community Centre","7399","Fixtures and Fittings - Purchases","30/01/2019"
"Wolverhampton City Council","http://opendatacommunities.org/id/metropolitan-district-council/wolverhampton","NUMATIC INTERNATIONAL","39.98","Central Costs","5065","Equipment - R & M","30/01/2019"
"Wolverhampton City Council","http://opendatacommunities.org/id/metropolitan-district-council/wolverhampton","WWW.FIREPROTECTIONSHOP","28.90","Service Wide","5999","Equipment - Purchase","30/01/2019"
"Wolverhampton City Council","http://opendatacommunities.org/id/metropolitan-district-council/wolverhampton","2CO.COM TABULIZER.COM","42.38","ICT Services","5734","Computing - Purchase of Software","30/01/2019"
"Wolverhampton City Council","http://opendatacommunities.org/id/metropolitan-district-council/wolverhampton","AMZN Mktp UK MI0AE9OW4","12.97","Creative Studies Delivery Area","5942","Equipment - Purchase","30/01/2019"
"Wolverhampton City Council","http://opendatacommunities.org/id/metropolitan-district-council/wolverhampton","Trainline","56.27","Creative Studies Delivery Area","4112","Public Transport","30/01/2019"
"Wolverhampton City Council","http://opendatacommunities.org/id/metropolitan-district-council/wolverhampton","SCREWFIX DIRECT","41.65","Towers Outdoor Education Centre","5211","Fixtures and Fittings - Purchases","30/01/2019"
"Wolverhampton City Council","http://opendatacommunities.org/id/metropolitan-district-council/wolverhampton","THE BOOK SERVICE LTD T","818.41","Literature Festival","5942","Provisions (Not for resale)","30/01/2019"
"Wolverhampton City Council","http://opendatacommunities.org/id/metropolitan-district-council/wolverhampton","AMZN Mktp UK MI1748OX4","33.98","SEN Sensory Inclusion","5942","Equipment - Purchase","30/01/2019"
"Wolverhampton City Council","http://opendatacommunities.org/id/metropolitan-district-council/wolverhampton","ARGOS WOLVERHAMPTO","29.17","LAC Transitions Team","5310","Client Allowances","30/01/2019"
"Wolverhampton City Council","http://opendatacommunities.org/id/metropolitan-district-council/wolverhampton","AMZN Mktp UK MI0ZA4OO4","21.66","SEN Sensory Inclusion","5942","Equipment - Purchase","30/01/2019"
"Wolverhampton City Council","http://opendatacommunities.org/id/metropolitan-district-council/wolverhampton","AMZN Mktp UK MI9PM2C24","9.16","SEN Sensory Inclusion","5942","Equipment - Purchase","30/01/2019"
"Wolverhampton City Council","http://opendatacommunities.org/id/metropolitan-district-council/wolverhampton","AMZN Mktp UK MI69F8OY4","12.90","SEN Sensory Inclusion","5942","Equipment - Purchase","30/01/2019"
"Wolverhampton City Council","http://opendatacommunities.org/id/metropolitan-district-council/wolverhampton","AMZN Mktp UK MI6HX4CY4","8.72","SEN Sensory Inclusion","5942","Equipment - Purchase","30/01/2019"
"Wolverhampton City Council","http://opendatacommunities.org/id/metropolitan-district-council/wolverhampton","AMZN Mktp UK MI8NY8CT4","21.45","SEN Sensory Inclusion","5942","Equipment - Purchase","30/01/2019"
"Wolverhampton City Council","http://opendatacommunities.org/id/metropolitan-district-council/wolverhampton","COMPTON HOSPICE TRDG L","12.50","LAC Transitions Team","5712","Client Allowances","30/01/2019"
"Wolverhampton City Council","http://opendatacommunities.org/id/metropolitan-district-council/wolverhampton","AMZN Mktp UK MI4W62O74","143.68","SEN Sensory Inclusion","5942","Equipment - Purchase","30/01/2019"
"Wolverhampton City Council","http://opendatacommunities.org/id/metropolitan-district-council/wolverhampton","123-REG.CO.UK","39.96","Technical Support","4816","Computing - Purchase of Software","30/01/2019"
"Wolverhampton City Council","http://opendatacommunities.org/id/metropolitan-district-council/wolverhampton","WWW.ICELAND.CO.UK","56.78","Bradley Resource Centre","5411","Provisions (Not for resale)","29/01/2019"
"Wolverhampton City Council","http://opendatacommunities.org/id/metropolitan-district-council/wolverhampton","UNIVERSITY STN T/O","5.30","Collections","4112","Public Transport","29/01/2019"
"Wolverhampton City Council","http://opendatacommunities.org/id/metropolitan-district-council/wolverhampton","DUNELM (SOFT FURNISHIN","19.00","Key to Inspiration","5714","Equipment - Purchase","29/01/2019"
"Wolverhampton City Council","http://opendatacommunities.org/id/metropolitan-district-council/wolverhampton","Amazon.co.uk MB42L5Y24","14.34","Citizenship, Language & Learning","5969","Equipment - Purchase","29/01/2019"
"Wolverhampton City Council","http://opendatacommunities.org/id/metropolitan-district-council/wolverhampton","Virgin Trains","441.00","Private Hire Vehicles","4112","Public Transport","29/01/2019"
"Wolverhampton City Council","http://opendatacommunities.org/id/metropolitan-district-council/wolverhampton","AMZN MKTP UK MB81B9YB4","348.54","Private Hire Vehicles","5942","Books","29/01/2019"
"Wolverhampton City Council","http://opendatacommunities.org/id/metropolitan-district-council/wolverhampton","Amazon.co.uk MB3D80YU4","23.97","Private Hire Vehicles","5969","Equipment - Purchase","29/01/2019"
"Wolverhampton City Council","http://opendatacommunities.org/id/metropolitan-district-council/wolverhampton","SKIP LOCAL","190.00","EIP Locality 8","4900","Grant Payments","29/01/2019"
"Wolverhampton City Council","http://opendatacommunities.org/id/metropolitan-district-council/wolverhampton","FIRSTAID4LESS.CO.UK","33.80","Towers Outdoor Education Centre","5999","Equipment - Purchase","29/01/2019"
"Wolverhampton City Council","http://opendatacommunities.org/id/metropolitan-district-council/wolverhampton","TRAVELODGE","134.12","Delivery & OCE Development","3615","Services - Supplies & Services to users","29/01/2019"
"Wolverhampton City Council","http://opendatacommunities.org/id/metropolitan-district-council/wolverhampton","Trainline","46.30","Starting and Developing Well(0-24 group)","4112","Public Transport","29/01/2019"
"Wolverhampton City Council","http://opendatacommunities.org/id/metropolitan-district-council/wolverhampton","WOMBOURNE POOL BAR LTD","5.00","Youth Offending Team","5813","Educ Trips, Holidays, Outings, Activity","29/01/2019"
"Wolverhampton City Council","http://opendatacommunities.org/id/metropolitan-district-council/wolverhampton","Trainline","27.63","LAC Transitions Team","4112","Public Transport","29/01/2019"
"Wolverhampton City Council","http://opendatacommunities.org/id/metropolitan-district-council/wolverhampton","Trainline","58.42","Court Team","4112","Public Transport","29/01/2019"
"Wolverhampton City Council","http://opendatacommunities.org/id/metropolitan-district-council/wolverhampton","Oyster Online","10.00","Delivery & OCE Development","4112","Public Transport","29/01/2019"
"Wolverhampton City Council","http://opendatacommunities.org/id/metropolitan-district-council/wolverhampton","NATWEST BANK","200.00","CAT","6011","No Recourse to Public Funds","29/01/2019"
"Wolverhampton City Council","http://opendatacommunities.org/id/metropolitan-district-council/wolverhampton","Virgin Trains","158.70","Service Director City Economy","4112","Public Transport","29/01/2019"
"Wolverhampton City Council","http://opendatacommunities.org/id/metropolitan-district-council/wolverhampton","YOUNG`S SHOE REPAIRS L","124.50","Wolverhampton Indoor and Open Market","7251","Fixtures and Fittings - R&M","29/01/2019"
"Wolverhampton City Council","http://opendatacommunities.org/id/metropolitan-district-council/wolverhampton","WWW.CORAM.ORG.UK","86.65","Panel Expenses Fostering & Adoption","8398","Books","29/01/2019"
"Wolverhampton City Council","http://opendatacommunities.org/id/metropolitan-district-council/wolverhampton","SCREWFIX DIRECT LT","54.16","Culwell Street Depot","5211","Materials","29/01/2019"
"Wolverhampton City Council","http://opendatacommunities.org/id/metropolitan-district-council/wolverhampton","AMZN Mktp UK MB8N79Y94","62.07","MASH","5942","Equipment - Health and Safety","29/01/2019"
"Wolverhampton City Council","http://opendatacommunities.org/id/metropolitan-district-council/wolverhampton","ICELAND","11.45","Head of Strategic Commissioning � People","5411","Provisions (Not for resale)","29/01/2019"
"Wolverhampton City Council","http://opendatacommunities.org/id/metropolitan-district-council/wolverhampton","WIX.COM","279.39","Technical Support","5968","Subscriptions","29/01/2019"
"Wolverhampton City Council","http://opendatacommunities.org/id/metropolitan-district-council/wolverhampton","Amazon.co.uk MB02F2Y04","62.38","Art Gallery","5969","Equipment - Purchase","29/01/2019"
"Wolverhampton City Council","http://opendatacommunities.org/id/metropolitan-district-council/wolverhampton","WWW.THEZINCGROUP.COM","146.39","LAC Transitions Team","7277","Accommodation Costs","29/01/2019"
"Wolverhampton City Council","http://opendatacommunities.org/id/metropolitan-district-council/wolverhampton","HALFORDS 0775","29.17","EIP Locality 3","5940","Grant Payments","29/01/2019"
"Wolverhampton City Council","http://opendatacommunities.org/id/metropolitan-district-council/wolverhampton","Trainline","205.13","Delivery & OCE Development","4112","Public Transport","29/01/2019"
"Wolverhampton City Council","http://opendatacommunities.org/id/metropolitan-district-council/wolverhampton","AMZN Mktp UK MB43I6YQ4","8.32","Specialist Support Service - North","5942","Equipment - Purchase","29/01/2019"
"Wolverhampton City Council","http://opendatacommunities.org/id/metropolitan-district-council/wolverhampton","TOOLSTATION LTD","12.73","Duke Street Bungalows","5251","Equipment - Purchase","29/01/2019"
"Wolverhampton City Council","http://opendatacommunities.org/id/metropolitan-district-council/wolverhampton","AMZN Mktp UK MB3ON7YL4","359.90","SEN Early Years Team","5942","Equipment - Purchase","29/01/2019"
"Wolverhampton City Council","http://opendatacommunities.org/id/metropolitan-district-council/wolverhampton","PARKIN FABRICS LIM","73.65","Creative Studies Delivery Area","5949","Materials","29/01/2019"
"Wolverhampton City Council","http://opendatacommunities.org/id/metropolitan-district-council/wolverhampton","WOLVERHAMPTON T/O","24.50","Creative Studies Delivery Area","4112","Public Transport","29/01/2019"
"Wolverhampton City Council","http://opendatacommunities.org/id/metropolitan-district-council/wolverhampton","B&M RETAIL LTD","-15.00","Key to Inspiration","5310","Equipment - Purchase","29/01/2019"
"Wolverhampton City Council","http://opendatacommunities.org/id/metropolitan-district-council/wolverhampton","SSE","5.16","LAC Transitions Team","4900","Client Allowances","29/01/2019"
"Wolverhampton City Council","http://opendatacommunities.org/id/metropolitan-district-council/wolverhampton","HUGHES","293.00","LAC Transitions Team","5732","Client Allowances","29/01/2019"
"Wolverhampton City Council","http://opendatacommunities.org/id/metropolitan-district-council/wolverhampton","123 REG R/T","19.98","Technical Support","5968","Subscriptions","28/01/2019"
"Wolverhampton City Council","http://opendatacommunities.org/id/metropolitan-district-council/wolverhampton","HOMEBASE LTD 103","6.17","Independant Living Services","5211","Cleaning Supplies and Materials","28/01/2019"
"Wolverhampton City Council","http://opendatacommunities.org/id/metropolitan-district-council/wolverhampton","B & Q 1243","50.00","Independant Living Services","5211","Cleaning Supplies and Materials","28/01/2019"
"Wolverhampton City Council","http://opendatacommunities.org/id/metropolitan-district-council/wolverhampton","WWW.SHROPSHIRE-C.GOV.","11.00","LAC Team","8220","Financial Assistance In Exceptional Circ","28/01/2019"
"Wolverhampton City Council","http://opendatacommunities.org/id/metropolitan-district-council/wolverhampton","ASDA GROCERIES ONLINE","49.51","Ernest Bold Court","5411","Provisions (Not for resale)","28/01/2019"
"Wolverhampton City Council","http://opendatacommunities.org/id/metropolitan-district-council/wolverhampton","SAINSBURYS 2040","2.30","Ernest Bold Court","5411","Provisions (Not for resale)","28/01/2019"
"Wolverhampton City Council","http://opendatacommunities.org/id/metropolitan-district-council/wolverhampton","POST OFFICE COUNTER","79.50","Trading Standards","9402","Services - Fees and Charges","28/01/2019"
"Wolverhampton City Council","http://opendatacommunities.org/id/metropolitan-district-council/wolverhampton","AMZN Mktp UK MB4215RA4","59.97","SEN Early Years Team","5942","Equipment - Purchase","28/01/2019"
"Wolverhampton City Council","http://opendatacommunities.org/id/metropolitan-district-council/wolverhampton","AMZN Mktp UK MB5KT4IB4","33.32","SEN Early Years Team","5942","Equipment - Purchase","28/01/2019"
"Wolverhampton City Council","http://opendatacommunities.org/id/metropolitan-district-council/wolverhampton","HOME BARGAINS","5.10","Inclusion Support","5251","Equipment - Purchase","28/01/2019"
"Wolverhampton City Council","http://opendatacommunities.org/id/metropolitan-district-council/wolverhampton","ALAN GREGORY MUSIC","494.34","Music Support Team","5733","Equipment - Purchase","28/01/2019"
"Wolverhampton City Council","http://opendatacommunities.org/id/metropolitan-district-council/wolverhampton","ALAN GREGORY MUSIC","262.61","Music Support Team","5733","Equipment - Purchase","28/01/2019"
"Wolverhampton City Council","http://opendatacommunities.org/id/metropolitan-district-council/wolverhampton","Virgin Trains","197.10","Members Expenses","4112","Public Transport","28/01/2019"
"Wolverhampton City Council","http://opendatacommunities.org/id/metropolitan-district-council/wolverhampton","ASDA GROCERIES ONLINE","85.03","Bradley Resource Centre","5411","Provisions (Not for resale)","28/01/2019"
"Wolverhampton City Council","http://opendatacommunities.org/id/metropolitan-district-council/wolverhampton","WEST MID TRAVEL","436.90","IMPACT","4131","Public Transport","28/01/2019"
"Wolverhampton City Council","http://opendatacommunities.org/id/metropolitan-district-council/wolverhampton","SurveyMonkey","280.00","Parent/Partnership Service","7372","Subscriptions","28/01/2019"
"Wolverhampton City Council","http://opendatacommunities.org/id/metropolitan-district-council/wolverhampton","Cash Withdrawal from ATM","200.00","Childrens with Disabilities Team","6011","No Recourse to Public Funds","28/01/2019"
"Wolverhampton City Council","http://opendatacommunities.org/id/metropolitan-district-council/wolverhampton","AMZN Mktp UK MB3FX0IX4","3.76","Towers Outdoor Education Centre","5942","Fixtures and Fittings - Purchases","28/01/2019"
"Wolverhampton City Council","http://opendatacommunities.org/id/metropolitan-district-council/wolverhampton","AMZN Mktp UK MB32U5U54","9.21","Towers Outdoor Education Centre","5942","Books","28/01/2019"
"Wolverhampton City Council","http://opendatacommunities.org/id/metropolitan-district-council/wolverhampton","DNH GODADDY.COM EUROPE","56.18","Register Office","4816","Computing - Purchase of Software","28/01/2019"
"Wolverhampton City Council","http://opendatacommunities.org/id/metropolitan-district-council/wolverhampton","ARGOS WOLVERHAMPTO","102.06","Key to Inspiration","5310","Equipment - Purchase","28/01/2019"
"Wolverhampton City Council","http://opendatacommunities.org/id/metropolitan-district-council/wolverhampton","POST OFFICE COUNTER","9.95","Bert Williams Leisure Centre","9402","Comms - Postage","28/01/2019"
"Wolverhampton City Council","http://opendatacommunities.org/id/metropolitan-district-council/wolverhampton","Virgin Trains","83.55","LAC Team","4112","Public Transport","28/01/2019"
"Wolverhampton City Council","http://opendatacommunities.org/id/metropolitan-district-council/wolverhampton","Virgin Trains","88.35","LAC Team","4112","Public Transport","28/01/2019"
"Wolverhampton City Council","http://opendatacommunities.org/id/metropolitan-district-council/wolverhampton","Virgin Trains","216.00","LAC Team","4112","Public Transport","28/01/2019"
"Wolverhampton City Council","http://opendatacommunities.org/id/metropolitan-district-council/wolverhampton","Amazon.co.uk MB3AN2RN4","23.98","Youth Offending Team","5969","Equipment - Purchase","28/01/2019"
"Wolverhampton City Council","http://opendatacommunities.org/id/metropolitan-district-council/wolverhampton","Amazon.co.uk MB8ML3RZ4","240.87","EIP Locality 6","5969","Grant Payments","28/01/2019"
"Wolverhampton City Council","http://opendatacommunities.org/id/metropolitan-district-council/wolverhampton","Amazon.co.uk MB5Z89I84","31.16","EIP Locality 6","5969","Grant Payments","28/01/2019"
"Wolverhampton City Council","http://opendatacommunities.org/id/metropolitan-district-council/wolverhampton","Amazon.co.uk MB9V12RG4","10.42","Talk English","5969","Equipment - Purchase","28/01/2019"
"Wolverhampton City Council","http://opendatacommunities.org/id/metropolitan-district-council/wolverhampton","Amazon.co.uk MB5BF3IP4","46.74","EIP Locality 6","5969","Grant Payments","28/01/2019"
"Wolverhampton City Council","http://opendatacommunities.org/id/metropolitan-district-council/wolverhampton","ASDA GROCERIES ONLINE","32.71","Creative Studies Delivery Area","5411","Provisions (Not for resale)","28/01/2019"
"Wolverhampton City Council","http://opendatacommunities.org/id/metropolitan-district-council/wolverhampton","Amazon.co.uk MB14E3U44","163.99","EIP Locality 6","5969","Grant Payments","28/01/2019"
"Wolverhampton City Council","http://opendatacommunities.org/id/metropolitan-district-council/wolverhampton","Amazon.co.uk MB1I56I14","10.67","Archives","5969","Books","28/01/2019"
"Wolverhampton City Council","http://opendatacommunities.org/id/metropolitan-district-council/wolverhampton","AMZN Mktp UK MB3LN7I24","50.79","Talk English","5942","Equipment - Purchase","28/01/2019"
"Wolverhampton City Council","http://opendatacommunities.org/id/metropolitan-district-council/wolverhampton","ROOKERY  Sainsburys B","100.00","Duke Street Bungalows","6011","Provisions (Not for resale)","28/01/2019"
"Wolverhampton City Council","http://opendatacommunities.org/id/metropolitan-district-council/wolverhampton","SAINSBURYS 2040","9.15","Duke Street Bungalows","5411","R4010","28/01/2019"
"Wolverhampton City Council","http://opendatacommunities.org/id/metropolitan-district-council/wolverhampton","WM MORRISONS STORE","11.00","LAC Transitions Team","5411","Provisions (Not for resale)","28/01/2019"
"Wolverhampton City Council","http://opendatacommunities.org/id/metropolitan-district-council/wolverhampton","CAMDEN FOOD CO BARRIER","6.37","Curatorial - Cultural Learning","5814","Subsistence","28/01/2019"
"Wolverhampton City Council","http://opendatacommunities.org/id/metropolitan-district-council/wolverhampton","WIX.COM","46.57","Technical Support","5968","Subscriptions","28/01/2019"
"Wolverhampton City Council","http://opendatacommunities.org/id/metropolitan-district-council/wolverhampton","WIX.COM","46.57","Technical Support","5968","Subscriptions","28/01/2019"
"Wolverhampton City Council","http://opendatacommunities.org/id/metropolitan-district-council/wolverhampton","Wix.com","46.57","Technical Support","5817","Computing - Purchase of Software","28/01/2019"
"Wolverhampton City Council","http://opendatacommunities.org/id/metropolitan-district-council/wolverhampton","Wix.com","46.57","Technical Support","5817","Computing - Purchase of Software","28/01/2019"
"Wolverhampton City Council","http://opendatacommunities.org/id/metropolitan-district-council/wolverhampton","Wix.com","46.57","Technical Support","5817","Computing - Purchase of Software","28/01/2019"
"Wolverhampton City Council","http://opendatacommunities.org/id/metropolitan-district-council/wolverhampton","LUL TICKET MACHINE","10.00","Curatorial - Cultural Learning","4112","Public Transport","28/01/2019"
"Wolverhampton City Council","http://opendatacommunities.org/id/metropolitan-district-council/wolverhampton","WARLEY WINES","34.41","","5411","Provisions (Not for resale)","25/01/2019"
"Wolverhampton City Council","http://opendatacommunities.org/id/metropolitan-district-council/wolverhampton","WWW.HEXIS.CO.UK","168.60","Document Centre - General","7399","Equipment - Purchase","25/01/2019"
"Wolverhampton City Council","http://opendatacommunities.org/id/metropolitan-district-council/wolverhampton","ADOBE  IL CREATIVE CLD","606.72","Document Centre - General","5734","Computing - Purchase of Software","25/01/2019"
"Wolverhampton City Council","http://opendatacommunities.org/id/metropolitan-district-council/wolverhampton","AMZN Mktp UK MB5Q979U4","7.49","IMPACT","5942","Books","25/01/2019"
"Wolverhampton City Council","http://opendatacommunities.org/id/metropolitan-district-council/wolverhampton","WM MORRISON FOOD.COM","72.39","Discretionary Fund","5411","Materials","25/01/2019"
"Wolverhampton City Council","http://opendatacommunities.org/id/metropolitan-district-council/wolverhampton","WOLVERHAMPTON CC","4.58","Headstart Phase 3","7523","Parking Fees","25/01/2019"
"Wolverhampton City Council","http://opendatacommunities.org/id/metropolitan-district-council/wolverhampton","WWW.ARGOS.CO.UK","-54.99","LAC Transitions Team","5310","Equipment - Purchase","25/01/2019"
"Wolverhampton City Council","http://opendatacommunities.org/id/metropolitan-district-council/wolverhampton","POST OFFICE COUNTER","2.25","Adoption and Residence Team & Allowances","9402","Comms - Postage","25/01/2019"
"Wolverhampton City Council","http://opendatacommunities.org/id/metropolitan-district-council/wolverhampton","AMZN Mktp UK MB1XN4U64","9.99","Towers Outdoor Education Centre","5942","Fixtures and Fittings - Purchases","25/01/2019"
"Wolverhampton City Council","http://opendatacommunities.org/id/metropolitan-district-council/wolverhampton","Amazon.co.uk MB6ZT9U04","5.79","Towers Outdoor Education Centre","5969","Fixtures and Fittings - Purchases","25/01/2019"
"Wolverhampton City Council","http://opendatacommunities.org/id/metropolitan-district-council/wolverhampton","POSTURITE LTD","70.50","Economic Inclusion","7399","Equipment - Health and Safety","25/01/2019"
"Wolverhampton City Council","http://opendatacommunities.org/id/metropolitan-district-council/wolverhampton","POUNDLAND LTD 1463","21.00","Public Health Support Costs","5310","Equipment - Purchase","25/01/2019"
"Wolverhampton City Council","http://opendatacommunities.org/id/metropolitan-district-council/wolverhampton","POUNDSTRETCHER 147","7.00","Public Health Support Costs","5714","Equipment - Purchase","25/01/2019"
"Wolverhampton City Council","http://opendatacommunities.org/id/metropolitan-district-council/wolverhampton","AMZN MKTP UK MB17N29L4","2.78","EIP Locality 6","5942","Grant Payments","25/01/2019"
"Wolverhampton City Council","http://opendatacommunities.org/id/metropolitan-district-council/wolverhampton","Trainline","48.64","LAC Transitions Team","4112","Public Transport","25/01/2019"
"Wolverhampton City Council","http://opendatacommunities.org/id/metropolitan-district-council/wolverhampton","Amazon.co.uk MB1IJ29W4","3.72","Central Baths","5969","Equipment - Purchase","25/01/2019"
"Wolverhampton City Council","http://opendatacommunities.org/id/metropolitan-district-council/wolverhampton","Amazon.co.uk MB0QM4934","17.26","Central Baths","5969","Equipment - Purchase","25/01/2019"
"Wolverhampton City Council","http://opendatacommunities.org/id/metropolitan-district-council/wolverhampton","EB  ASSESSOR TRAINING-","175.00","AES Staff Development","7399","Training Expenses","25/01/2019"
"Wolverhampton City Council","http://opendatacommunities.org/id/metropolitan-district-council/wolverhampton","Amazon.co.uk MB1Q12984","9.49","Archives","5969","Books","25/01/2019"
"Wolverhampton City Council","http://opendatacommunities.org/id/metropolitan-district-council/wolverhampton","ENVIROMENT AGENCY","471.80","Strat Asst Mgt Bilston Town Centre Regen","9399","Services - Fees and Charges","25/01/2019"
"Wolverhampton City Council","http://opendatacommunities.org/id/metropolitan-district-council/wolverhampton","ENVIROMENT AGENCY","471.80","Strat Asst Mgt Bilston Town Centre Regen","9399","Services - Fees and Charges","25/01/2019"
"Wolverhampton City Council","http://opendatacommunities.org/id/metropolitan-district-council/wolverhampton","Wix.com","93.13","Technical Support","5817","Computing - Purchase of Software","25/01/2019"
"Wolverhampton City Council","http://opendatacommunities.org/id/metropolitan-district-council/wolverhampton","ASDA GROCERIES ONLINE","5.00","Ernest Bold Court","5411","Provisions (Not for resale)","25/01/2019"
"Wolverhampton City Council","http://opendatacommunities.org/id/metropolitan-district-council/wolverhampton","Trainline","190.78","Parking Enforcement","4112","Public Transport","25/01/2019"
"Wolverhampton City Council","http://opendatacommunities.org/id/metropolitan-district-council/wolverhampton","EE STORE R501","16.67","School Crossing Patrol","4814","Comms - Telephone Call charges","25/01/2019"
"Wolverhampton City Council","http://opendatacommunities.org/id/metropolitan-district-council/wolverhampton","CITY OF WOLVERHAMPTON","65.00","Head of Service - CINCP","9399","Services - Professional Fees","25/01/2019"
"Wolverhampton City Council","http://opendatacommunities.org/id/metropolitan-district-council/wolverhampton","AMZN Mktp UK MB1WW5UV4","31.72","Legal Services","5942","Stationery","25/01/2019"
"Wolverhampton City Council","http://opendatacommunities.org/id/metropolitan-district-council/wolverhampton","AMZN Mktp UK MB4X259W4","82.43","Legal Services","5942","Stationery","25/01/2019"
"Wolverhampton City Council","http://opendatacommunities.org/id/metropolitan-district-council/wolverhampton","WWW.WMCA.CO.UK","675.00","Scrutiny & Transparency","9399","Public Transport","25/01/2019"
"Wolverhampton City Council","http://opendatacommunities.org/id/metropolitan-district-council/wolverhampton","HOMEBASE LTD 103","-32.00","Key to Inspiration","5211","Materials","24/01/2019"
"Wolverhampton City Council","http://opendatacommunities.org/id/metropolitan-district-council/wolverhampton","ASDA SUPERSTORE","3.50","Key to Inspiration","5411","Provisions (Not for resale)","24/01/2019"
"Wolverhampton City Council","http://opendatacommunities.org/id/metropolitan-district-council/wolverhampton","HOME BARGAINS WOLVERHA","7.90","Key to Inspiration","5251","Equipment - Purchase","24/01/2019"
"Wolverhampton City Council","http://opendatacommunities.org/id/metropolitan-district-council/wolverhampton","ARGOS WOLVERHAMPTO","15.33","Key to Inspiration","5310","Equipment - Purchase","24/01/2019"
"Wolverhampton City Council","http://opendatacommunities.org/id/metropolitan-district-council/wolverhampton","ARGOS WOLVERHAMPTO","6.65","Key to Inspiration","5310","Equipment - Purchase","24/01/2019"
"Wolverhampton City Council","http://opendatacommunities.org/id/metropolitan-district-council/wolverhampton","HOMEBASE LTD 103","9.68","Key to Inspiration","5211","Materials","24/01/2019"
"Wolverhampton City Council","http://opendatacommunities.org/id/metropolitan-district-council/wolverhampton","HOMEBASE LTD 103","32.00","Key to Inspiration","5211","Materials","24/01/2019"
"Wolverhampton City Council","http://opendatacommunities.org/id/metropolitan-district-council/wolverhampton","WWW.ARGOS.CO.UK","94.95","LAC Transitions Team","5310","Client Allowances","24/01/2019"
"Wolverhampton City Council","http://opendatacommunities.org/id/metropolitan-district-council/wolverhampton","PAYPAL  QUICKPRINTU","125.17","Mayor's Charity","7311","Printing","24/01/2019"
"Wolverhampton City Council","http://opendatacommunities.org/id/metropolitan-district-council/wolverhampton","NATWEST BANK","200.00","CAT","6011","No Recourse to Public Funds","24/01/2019"
"Wolverhampton City Council","http://opendatacommunities.org/id/metropolitan-district-council/wolverhampton","PREMIER INN","63.33","Adoption and Residence Team & Allowances","3811","Services - Supplies & Services to users","24/01/2019"
"Wolverhampton City Council","http://opendatacommunities.org/id/metropolitan-district-council/wolverhampton","PREMIER INN","302.00","Adoption and Residence Team & Allowances","3811","Services - Supplies & Services to users","24/01/2019"
"Wolverhampton City Council","http://opendatacommunities.org/id/metropolitan-district-council/wolverhampton","Virgin Trains","217.50","Adoption and Residence Team & Allowances","4112","Public Transport","24/01/2019"
"Wolverhampton City Council","http://opendatacommunities.org/id/metropolitan-district-council/wolverhampton","TESCO STORE 3539","-2.00","Towers Outdoor Education Centre","5411","Provisions (Not for resale)","24/01/2019"
"Wolverhampton City Council","http://opendatacommunities.org/id/metropolitan-district-council/wolverhampton","SAINSBURYS (2340)","3.58","EIP Locality 4","5411","Grant Payments","24/01/2019"
"Wolverhampton City Council","http://opendatacommunities.org/id/metropolitan-district-council/wolverhampton","NEWHAMPTON ARTS CENTRE","5.00","EIP Locality 4","7922","Educ Trips, Holidays, Outings, Activity","24/01/2019"
"Wolverhampton City Council","http://opendatacommunities.org/id/metropolitan-district-council/wolverhampton","WWW.STA.CO.UK","40.00","Aldersley Leisure Village","7999","Educ Trips, Holidays, Outings, Activity","24/01/2019"
"Wolverhampton City Council","http://opendatacommunities.org/id/metropolitan-district-council/wolverhampton","GOOGLE  ADS9680351324","500.00","Communications & Marketing - General","5968","Subscriptions","24/01/2019"
"Wolverhampton City Council","http://opendatacommunities.org/id/metropolitan-district-council/wolverhampton","AMZN MKTP UK MB38I9K94","13.82","LAC Transitions Team","5942","Client Allowances","24/01/2019"
"Wolverhampton City Council","http://opendatacommunities.org/id/metropolitan-district-council/wolverhampton","Trainline","59.22","LAC Transitions Team","4112","Public Transport","24/01/2019"
"Wolverhampton City Council","http://opendatacommunities.org/id/metropolitan-district-council/wolverhampton","HOME BARGAINS WOLVERHA","7.50","Cemeteries","5251","Equipment - Purchase","24/01/2019"
"Wolverhampton City Council","http://opendatacommunities.org/id/metropolitan-district-council/wolverhampton","SCREWFIX DIRECT LT","39.27","Cemeteries","5211","Materials","24/01/2019"
"Wolverhampton City Council","http://opendatacommunities.org/id/metropolitan-district-council/wolverhampton","INDIGO PARK UK","6.10","Managing Director","7523","Car Allowances","24/01/2019"
"Wolverhampton City Council","http://opendatacommunities.org/id/metropolitan-district-council/wolverhampton","Virgin Trains","117.60","Delivery & OCE Development","4112","Public Transport","24/01/2019"
"Wolverhampton City Council","http://opendatacommunities.org/id/metropolitan-district-council/wolverhampton","ASDA GROCERIES ONLINE","0.87","Upper Pendeford Farm Childrens Home","5411","Provisions (Not for resale)","24/01/2019"
"Wolverhampton City Council","http://opendatacommunities.org/id/metropolitan-district-council/wolverhampton","ASDA GROCERIES ONLINE","198.96","Upper Pendeford Farm Childrens Home","5411","Provisions (Not for resale)","24/01/2019"
"Wolverhampton City Council","http://opendatacommunities.org/id/metropolitan-district-council/wolverhampton","ASDA GROCERIES ONLINE","30.02","Creative Studies Delivery Area","5411","Provisions (Not for resale)","24/01/2019"
"Wolverhampton City Council","http://opendatacommunities.org/id/metropolitan-district-council/wolverhampton","Trainline","49.76","Literature Festival","4112","Provisions (Not for resale)","24/01/2019"
"Wolverhampton City Council","http://opendatacommunities.org/id/metropolitan-district-council/wolverhampton","Trainline","29.76","Archives","4112","Public Transport","24/01/2019"
"Wolverhampton City Council","http://opendatacommunities.org/id/metropolitan-district-council/wolverhampton","CARVER/WOLVERHAMPTON/L","44.59","Culwell Street Depot","5211","Materials","24/01/2019"
"Wolverhampton City Council","http://opendatacommunities.org/id/metropolitan-district-council/wolverhampton","ESEDIRECT.CO.UK","181.25","Civic Centre","5943","Equipment - Purchase","24/01/2019"
"Wolverhampton City Council","http://opendatacommunities.org/id/metropolitan-district-council/wolverhampton","Virgin Trains","136.00","Delivery & OCE Development","4112","Public Transport","24/01/2019"
"Wolverhampton City Council","http://opendatacommunities.org/id/metropolitan-district-council/wolverhampton","WWW.MACLINGROUP.CO.UK","525.00","Car Parks Operational Staff","2842","Equipment - Purchase","24/01/2019"
"Wolverhampton City Council","http://opendatacommunities.org/id/metropolitan-district-council/wolverhampton","NATWEST BANK","200.00","CAT","6011","No Recourse to Public Funds","24/01/2019"
"Wolverhampton City Council","http://opendatacommunities.org/id/metropolitan-district-council/wolverhampton","LOYD 37 CHURCH STREET","200.00","Duke Street Bungalows","6011","Financial Assistance In Exceptional Circ","24/01/2019"
"Wolverhampton City Council","http://opendatacommunities.org/id/metropolitan-district-council/wolverhampton","CARD FACTORY","20.77","Road Safety","5947","Equipment - Purchase","24/01/2019"
"Wolverhampton City Council","http://opendatacommunities.org/id/metropolitan-district-council/wolverhampton","Trainline","9.92","CIN/CP Social Work Unit - Area 8","4112","Section 17","24/01/2019"
"Wolverhampton City Council","http://opendatacommunities.org/id/metropolitan-district-council/wolverhampton","GRO HM PASSPORT OFFICE","7.71","LAC Transitions Team","9399","Client Allowances","24/01/2019"
"Wolverhampton City Council","http://opendatacommunities.org/id/metropolitan-district-council/wolverhampton","GRO HM PASSPORT OFFICE","7.71","LAC Transitions Team","9399","Client Allowances","24/01/2019"
"Wolverhampton City Council","http://opendatacommunities.org/id/metropolitan-district-council/wolverhampton","AMZN MKTP UK MB2SZ72W4","31.80","SEN Sensory Inclusion","5942","Equipment - Purchase","23/01/2019"
"Wolverhampton City Council","http://opendatacommunities.org/id/metropolitan-district-council/wolverhampton","BEATSABAR MUSIC PROJEC","160.00","Foundation Studies","5733","Room Hire","23/01/2019"
"Wolverhampton City Council","http://opendatacommunities.org/id/metropolitan-district-council/wolverhampton","WWW.ARGOS.CO.UK","147.07","LAC Transitions Team","5310","Equipment - Purchase","23/01/2019"
"Wolverhampton City Council","http://opendatacommunities.org/id/metropolitan-district-council/wolverhampton","WWW.LOCAL.GOV.UK","398.00","Private Hire Vehicles","7399","Conference Expenses","23/01/2019"
"Wolverhampton City Council","http://opendatacommunities.org/id/metropolitan-district-council/wolverhampton","B&M RETAIL","81.95","Key to Inspiration","5310","Equipment - Purchase","23/01/2019"
"Wolverhampton City Council","http://opendatacommunities.org/id/metropolitan-district-council/wolverhampton","Amazon.co.uk MB0WS5KF4","7.58","SEN Sensory Inclusion","5969","Equipment - Purchase","23/01/2019"
"Wolverhampton City Council","http://opendatacommunities.org/id/metropolitan-district-council/wolverhampton","CardtronicsUK","100.00","EIP Locality 3","6011","Grant Payments","23/01/2019"
"Wolverhampton City Council","http://opendatacommunities.org/id/metropolitan-district-council/wolverhampton","CardtronicsUK","80.00","Private Hire Vehicles","6011","Financial Assistance In Exceptional Circ","23/01/2019"
"Wolverhampton City Council","http://opendatacommunities.org/id/metropolitan-district-council/wolverhampton","Virgin Trains","11.20","Private Hire Vehicles","4112","Public Transport","23/01/2019"
"Wolverhampton City Council","http://opendatacommunities.org/id/metropolitan-district-council/wolverhampton","WWW.CARESHOP.CO.UK","90.02","Ernest Bold Court","5999","Cleaning Supplies and Materials","23/01/2019"
"Wolverhampton City Council","http://opendatacommunities.org/id/metropolitan-district-council/wolverhampton","Virgin Trains","195.00","Private Hire Vehicles","4112","Conference Expenses","23/01/2019"
"Wolverhampton City Council","http://opendatacommunities.org/id/metropolitan-district-council/wolverhampton","WICKES","5.82","Specialist Support Service - North","5211","Equipment - R & M","23/01/2019"
"Wolverhampton City Council","http://opendatacommunities.org/id/metropolitan-district-council/wolverhampton","SAINSBURYS (2340)","24.33","EIP Locality 3","5411","Grant Payments","23/01/2019"
"Wolverhampton City Council","http://opendatacommunities.org/id/metropolitan-district-council/wolverhampton","Trainline","21.11","Head of Service - CINCP","4112","Public Transport","23/01/2019"
"Wolverhampton City Council","http://opendatacommunities.org/id/metropolitan-district-council/wolverhampton","TRAVELODGE","115.90","LAC Team","3615","Services - Supplies & Services to users","23/01/2019"
"Wolverhampton City Council","http://opendatacommunities.org/id/metropolitan-district-council/wolverhampton","Trainline","188.75","Head of Service - LAC","4112","Public Transport","23/01/2019"
"Wolverhampton City Council","http://opendatacommunities.org/id/metropolitan-district-council/wolverhampton","Virgin Trains","68.70","Adoption and Residence Team & Allowances","4112","Public Transport","23/01/2019"
"Wolverhampton City Council","http://opendatacommunities.org/id/metropolitan-district-council/wolverhampton","NATWEST BANK","200.00","CAT","6011","No Recourse to Public Funds","23/01/2019"
"Wolverhampton City Council","http://opendatacommunities.org/id/metropolitan-district-council/wolverhampton","Virgin Trains","-68.70","Adoption and Residence Team & Allowances","4112","Public Transport","23/01/2019"
"Wolverhampton City Council","http://opendatacommunities.org/id/metropolitan-district-council/wolverhampton","WWW.CORAM.ORG.UK","125.46","Adoption and Residence Team & Allowances","8398","Services - Supplies & Services to users","23/01/2019"
"Wolverhampton City Council","http://opendatacommunities.org/id/metropolitan-district-council/wolverhampton","TESCO STORES 5194","118.75","Towers Outdoor Education Centre","5411","Provisions (Not for resale)","23/01/2019"
"Wolverhampton City Council","http://opendatacommunities.org/id/metropolitan-district-council/wolverhampton","FACEBK  DRDQ9K2AR2","500.00","Communications & Marketing - General","7311","Marketing \ Non-staff advertising","23/01/2019"
"Wolverhampton City Council","http://opendatacommunities.org/id/metropolitan-district-council/wolverhampton","J VAN VLIET BIRMINGHAM","102.37","Creative Studies Delivery Area","5399","Materials for resale","23/01/2019"
"Wolverhampton City Council","http://opendatacommunities.org/id/metropolitan-district-council/wolverhampton","SCREWFIX DIRECT LT","3.40","Car Parks Operational Staff","5211","Equipment - Purchase","23/01/2019"
"Wolverhampton City Council","http://opendatacommunities.org/id/metropolitan-district-council/wolverhampton","J VAN VLIET BIRMINGHAM","149.31","Creative Studies Delivery Area","5399","Materials for resale","23/01/2019"
"Wolverhampton City Council","http://opendatacommunities.org/id/metropolitan-district-council/wolverhampton","ASDA SUPERSTORE","4.36","Mayoral Expenses","5411","Hospitality","23/01/2019"
"Wolverhampton City Council","http://opendatacommunities.org/id/metropolitan-district-council/wolverhampton","SAINSBURYS (2340)","33.05","Wholly Owned Company - Operations","5411","Provisions (Not for resale)","23/01/2019"
"Wolverhampton City Council","http://opendatacommunities.org/id/metropolitan-district-council/wolverhampton","WWW.DOMINOS.CO.UK","51.78","B-Safe","5812","Catering","23/01/2019"
"Wolverhampton City Council","http://opendatacommunities.org/id/metropolitan-district-council/wolverhampton","THE QUEEN VICTORIA HOT","35.00","CIN/CP Social Work Unit - Area 8","7011","Section 17","23/01/2019"
"Wolverhampton City Council","http://opendatacommunities.org/id/metropolitan-district-council/wolverhampton","J VAN VLIET BIRMINGHAM","18.55","Creative Studies Delivery Area","5399","Materials","23/01/2019"
"Wolverhampton City Council","http://opendatacommunities.org/id/metropolitan-district-council/wolverhampton","UPPAL SWEET SHOP","25.00","Public Health Support Costs","5812","Catering","23/01/2019"
"Wolverhampton City Council","http://opendatacommunities.org/id/metropolitan-district-council/wolverhampton","WWW.ARGOS.CO.UK","116.62","LAC Transitions Team","5310","Client Allowances","23/01/2019"
"Wolverhampton City Council","http://opendatacommunities.org/id/metropolitan-district-council/wolverhampton","UNTOUCHABLES","9.24","Cemeteries","5231","Materials","23/01/2019"
"Wolverhampton City Council","http://opendatacommunities.org/id/metropolitan-district-council/wolverhampton","Virgin Trains","129.95","LAC Team","4112","Public Transport","23/01/2019"
"Wolverhampton City Council","http://opendatacommunities.org/id/metropolitan-district-council/wolverhampton","Amazon.co.uk MB0PD9KG4","117.45","EIP Locality 7","5969","Equipment - Purchase","23/01/2019"
"Wolverhampton City Council","http://opendatacommunities.org/id/metropolitan-district-council/wolverhampton","AMZN Mktp UK MB5Z05KO4","19.24","Public Health Support Costs","5942","Equipment - Purchase","23/01/2019"
"Wolverhampton City Council","http://opendatacommunities.org/id/metropolitan-district-council/wolverhampton","AMZN Mktp UK MB9DM9KV4","27.85","Public Health Support Costs","5942","Books","23/01/2019"
"Wolverhampton City Council","http://opendatacommunities.org/id/metropolitan-district-council/wolverhampton","Virgin Trains","121.40","Members Expenses","4112","Public Transport","23/01/2019"
"Wolverhampton City Council","http://opendatacommunities.org/id/metropolitan-district-council/wolverhampton","ARGOS RETAIL GROUP","90.32","Key to Inspiration","5310","Equipment - Purchase","22/01/2019"
"Wolverhampton City Council","http://opendatacommunities.org/id/metropolitan-district-council/wolverhampton","WWW.WMCA.CO.UK","56.50","IMPACT","9399","Services - Fees and Charges","22/01/2019"
"Wolverhampton City Council","http://opendatacommunities.org/id/metropolitan-district-council/wolverhampton","ASDA GROCERIES ONLINE","0.54","Bradley Resource Centre","5411","Provisions (Not for resale)","22/01/2019"
"Wolverhampton City Council","http://opendatacommunities.org/id/metropolitan-district-council/wolverhampton","WOLVERHAMPTON T/O","89.70","IMPACT","4112","Public Transport","22/01/2019"
"Wolverhampton City Council","http://opendatacommunities.org/id/metropolitan-district-council/wolverhampton","THE POST OFFICE","1.77","IMPACT","9402","Comms - Postage","22/01/2019"
"Wolverhampton City Council","http://opendatacommunities.org/id/metropolitan-district-council/wolverhampton","CardtronicsUK","240.00","Private Hire Vehicles","6011","Financial Assistance In Exceptional Circ","22/01/2019"
"Wolverhampton City Council","http://opendatacommunities.org/id/metropolitan-district-council/wolverhampton","ASDA GROCERIES ONLINE","89.13","Bradley Resource Centre","5411","Provisions (Not for resale)","22/01/2019"
"Wolverhampton City Council","http://opendatacommunities.org/id/metropolitan-district-council/wolverhampton","Virgin Trains","184.00","Quality Assurance & Policies","4112","Public Transport","22/01/2019"
"Wolverhampton City Council","http://opendatacommunities.org/id/metropolitan-district-council/wolverhampton","NATWEST BANK","200.00","CAT","6011","No Recourse to Public Funds","22/01/2019"
"Wolverhampton City Council","http://opendatacommunities.org/id/metropolitan-district-council/wolverhampton","WWW.WMCA.CO.UK","56.50","IMPACT","9399","Services - Fees and Charges","22/01/2019"
"Wolverhampton City Council","http://opendatacommunities.org/id/metropolitan-district-council/wolverhampton","POST OFFICE COUNTER","17.20","Adoption and Residence Team & Allowances","9402","Comms - Postage","22/01/2019"
"Wolverhampton City Council","http://opendatacommunities.org/id/metropolitan-district-council/wolverhampton","WILDSIDE ACTIVITY CENT","8.00","EIP Locality 4","7999","Educ Trips, Holidays, Outings, Activity","22/01/2019"
"Wolverhampton City Council","http://opendatacommunities.org/id/metropolitan-district-council/wolverhampton","AMZN MKTP UK MB0G12S14","21.33","EIP Locality 6","5942","Provisions (Not for resale)","22/01/2019"
"Wolverhampton City Council","http://opendatacommunities.org/id/metropolitan-district-council/wolverhampton","AMZN Mktp UK MB1MW72Y4","34.80","Duke Street Bungalows","5942","Equipment - Purchase","22/01/2019"
"Wolverhampton City Council","http://opendatacommunities.org/id/metropolitan-district-council/wolverhampton","Trainline","20.30","SEN Special Education Admin","4112","Public Transport","22/01/2019"
"Wolverhampton City Council","http://opendatacommunities.org/id/metropolitan-district-council/wolverhampton","GRO HM PASSPORT OFFICE","9.25","LAC Team","9399","Financial Assistance In Exceptional Circ","22/01/2019"
"Wolverhampton City Council","http://opendatacommunities.org/id/metropolitan-district-council/wolverhampton","ASDA GROCERIES ONLINE","57.97","Ernest Bold Court","5411","Provisions (Not for resale)","22/01/2019"
"Wolverhampton City Council","http://opendatacommunities.org/id/metropolitan-district-council/wolverhampton","SCREWFIX DIRECT","119.97","Car Parks Operational Staff","5211","Clothing / Uniforms","22/01/2019"
"Wolverhampton City Council","http://opendatacommunities.org/id/metropolitan-district-council/wolverhampton","Trainline","35.46","Court Team","4112","Section 17","22/01/2019"
"Wolverhampton City Council","http://opendatacommunities.org/id/metropolitan-district-council/wolverhampton","POST OFFICE COUNTER","134.00","LAC Education Team (LACE)","9402","Comms - Postage","22/01/2019"
"Wolverhampton City Council","http://opendatacommunities.org/id/metropolitan-district-council/wolverhampton","POST OFFICE COUNTER","67.00","LAC Education Team (LACE)","9402","Comms - Postage","22/01/2019"
"Wolverhampton City Council","http://opendatacommunities.org/id/metropolitan-district-council/wolverhampton","ASDA GROCERIES ONLINE","30.33","Creative Studies Delivery Area","5411","Provisions (Not for resale)","22/01/2019"
"Wolverhampton City Council","http://opendatacommunities.org/id/metropolitan-district-council/wolverhampton","POST OFFICE COUNTER","134.00","LAC Education Team (LACE)","9402","Comms - Postage","22/01/2019"
"Wolverhampton City Council","http://opendatacommunities.org/id/metropolitan-district-council/wolverhampton","Virgin Trains","68.70","Adoption and Residence Team & Allowances","4112","Public Transport","22/01/2019"
"Wolverhampton City Council","http://opendatacommunities.org/id/metropolitan-district-council/wolverhampton","CO-OP GROUP 070362","12.00","Northicote Farm","5411","Provisions (Not for resale)","22/01/2019"
"Wolverhampton City Council","http://opendatacommunities.org/id/metropolitan-district-council/wolverhampton","Trainline","110.40","Delivery & OCE Development","4112","Public Transport","22/01/2019"
"Wolverhampton City Council","http://opendatacommunities.org/id/metropolitan-district-council/wolverhampton","ALDI 48 772","31.92","Employment Programmes","5411","Provisions (Not for resale)","21/01/2019"
"Wolverhampton City Council","http://opendatacommunities.org/id/metropolitan-district-council/wolverhampton","Wix.com","93.13","Technical Support","5817","Computing - Purchase of Software","21/01/2019"
"Wolverhampton City Council","http://opendatacommunities.org/id/metropolitan-district-council/wolverhampton","Amazon.co.uk MB0L12D44","4.99","Literature Festival","5969","Books","21/01/2019"
"Wolverhampton City Council","http://opendatacommunities.org/id/metropolitan-district-council/wolverhampton","ASDA GROCERIES ONLINE","47.36","Ernest Bold Court","5411","Provisions (Not for resale)","21/01/2019"
"Wolverhampton City Council","http://opendatacommunities.org/id/metropolitan-district-council/wolverhampton","WWW.WEIGHTMANS.COM","84.00","Head of Service - CINCP","8111","Services - Professional Fees","21/01/2019"
"Wolverhampton City Council","http://opendatacommunities.org/id/metropolitan-district-council/wolverhampton","CUMMINGS BROTHERS LOCK","29.17","Global Budgets","7399","Equipment - Purchase","21/01/2019"
"Wolverhampton City Council","http://opendatacommunities.org/id/metropolitan-district-council/wolverhampton","AMZN MKTP UK MB7E59624","30.91","SEN Sensory Inclusion","5942","Equipment - Purchase","21/01/2019"
"Wolverhampton City Council","http://opendatacommunities.org/id/metropolitan-district-council/wolverhampton","WWW.ADASS.ORG.UK","499.00","Workforce Development","8398","Training Expenses","21/01/2019"
"Wolverhampton City Council","http://opendatacommunities.org/id/metropolitan-district-council/wolverhampton","CITY OF WOLVERHAMPTON","35.00","Head of Service - CINCP","9399","Services - Professional Fees","21/01/2019"
"Wolverhampton City Council","http://opendatacommunities.org/id/metropolitan-district-council/wolverhampton","THE COAL AUTHORITY","39.92","Disposal Costs","9399","Services - Professional Fees","21/01/2019"
"Wolverhampton City Council","http://opendatacommunities.org/id/metropolitan-district-council/wolverhampton","THE COAL AUTHORITY","39.92","Disposal Costs","9399","Services - Professional Fees","21/01/2019"
"Wolverhampton City Council","http://opendatacommunities.org/id/metropolitan-district-council/wolverhampton","THE COAL AUTHORITY","95.16","Disposal Costs","9399","Services - Professional Fees","21/01/2019"
"Wolverhampton City Council","http://opendatacommunities.org/id/metropolitan-district-council/wolverhampton","LIDL UK  DUDLEY","26.16","Children & Family Contact Services","5411","Provisions (Not for resale)","21/01/2019"
"Wolverhampton City Council","http://opendatacommunities.org/id/metropolitan-district-council/wolverhampton","CASTLECROFT DOMESTIC S","25.00","Children & Family Contact Services","7629","Equipment - R & M","21/01/2019"
"Wolverhampton City Council","http://opendatacommunities.org/id/metropolitan-district-council/wolverhampton","Trainline","35.46","CIN/CP Social Work Unit - Area 4","4112","Section 17","21/01/2019"
"Wolverhampton City Council","http://opendatacommunities.org/id/metropolitan-district-council/wolverhampton","ROOKERY  Sainsburys B","100.00","Duke Street Bungalows","6011","Provisions (Not for resale)","21/01/2019"
"Wolverhampton City Council","http://opendatacommunities.org/id/metropolitan-district-council/wolverhampton","SAINSBURYS 2040","24.71","Duke Street Bungalows","5411","Provisions (Not for resale)","21/01/2019"
"Wolverhampton City Council","http://opendatacommunities.org/id/metropolitan-district-council/wolverhampton","CONTRACT SIGN SERV","212.00","Wolverhampton Indoor and Open Market","7333","Equipment - Hire","21/01/2019"
"Wolverhampton City Council","http://opendatacommunities.org/id/metropolitan-district-council/wolverhampton","LICENSING COUNTER","40.00","Mayor's Charity","9399","Services - Fees and Charges","21/01/2019"
"Wolverhampton City Council","http://opendatacommunities.org/id/metropolitan-district-council/wolverhampton","CLARKS.CO.UK","170.00","Passenger Transport - General","5661","Clothing / Uniforms","21/01/2019"
"Wolverhampton City Council","http://opendatacommunities.org/id/metropolitan-district-council/wolverhampton","ASDA GEORGE COM LEEDS","172.95","EIP Locality 8","5411","Grant Payments","21/01/2019"
"Wolverhampton City Council","http://opendatacommunities.org/id/metropolitan-district-council/wolverhampton","WOLVERHAMPTON SST","4.92","Economic Development","4112","Public Transport","21/01/2019"
"Wolverhampton City Council","http://opendatacommunities.org/id/metropolitan-district-council/wolverhampton","POST OFFICE COUNTER","235.00","Fostering Team & Allowances","9402","Comms - Postage","21/01/2019"
"Wolverhampton City Council","http://opendatacommunities.org/id/metropolitan-district-council/wolverhampton","Amazon.co.uk MB4333QU4","33.10","Aldersley Leisure Village","5969","Equipment - Purchase","21/01/2019"
"Wolverhampton City Council","http://opendatacommunities.org/id/metropolitan-district-council/wolverhampton","AMZN Mktp UK MB8372QU4","26.50","Aldersley Leisure Village","5942","Books","21/01/2019"
"Wolverhampton City Council","http://opendatacommunities.org/id/metropolitan-district-council/wolverhampton","AMZN Mktp UK MB6AZ5QG4","6.65","Aldersley Leisure Village","5942","Books","21/01/2019"
"Wolverhampton City Council","http://opendatacommunities.org/id/metropolitan-district-council/wolverhampton","WWW.ARGOS.CO.UK","129.99","LAC Transitions Team","5310","Client Allowances","21/01/2019"
"Wolverhampton City Council","http://opendatacommunities.org/id/metropolitan-district-council/wolverhampton","SAINSBURYS 0823","4.00","Youth Offending Team","5411","Provisions (Not for resale)","21/01/2019"
"Wolverhampton City Council","http://opendatacommunities.org/id/metropolitan-district-council/wolverhampton","Amazon.co.uk MB6FI0DR4","6.99","EIP Locality 6","5969","Provisions (Not for resale)","21/01/2019"
"Wolverhampton City Council","http://opendatacommunities.org/id/metropolitan-district-council/wolverhampton","TRAVELODGE","89.25","LAC Team","3615","Accommodation Costs","21/01/2019"
"Wolverhampton City Council","http://opendatacommunities.org/id/metropolitan-district-council/wolverhampton","Trainline","195.56","Assistant Director - Public Health","4112","Public Transport","21/01/2019"
"Wolverhampton City Council","http://opendatacommunities.org/id/metropolitan-district-council/wolverhampton","WEBSTAFF/ATP PAYMENTS","12.50","LAC Team","9399","Services - Fees and Charges","21/01/2019"
"Wolverhampton City Council","http://opendatacommunities.org/id/metropolitan-district-council/wolverhampton","Amazon.co.uk MB13B2DW4","13.99","EIP Locality 6","5969","Provisions (Not for resale)","21/01/2019"
"Wolverhampton City Council","http://opendatacommunities.org/id/metropolitan-district-council/wolverhampton","Virgin Trains","142.85","LAC Team","4112","Public Transport","21/01/2019"
"Wolverhampton City Council","http://opendatacommunities.org/id/metropolitan-district-council/wolverhampton","ASDA GROCERIES ONLINE","1.06","Upper Pendeford Farm Childrens Home","5411","Provisions (Not for resale)","21/01/2019"
"Wolverhampton City Council","http://opendatacommunities.org/id/metropolitan-district-council/wolverhampton","ASDA GROCERIES ONLINE","174.68","Upper Pendeford Farm Childrens Home","5411","Provisions (Not for resale)","21/01/2019"
"Wolverhampton City Council","http://opendatacommunities.org/id/metropolitan-district-council/wolverhampton","NATIONAL RAILCARD","140.00","LAC Team","4112","Public Transport","21/01/2019"
"Wolverhampton City Council","http://opendatacommunities.org/id/metropolitan-district-council/wolverhampton","AMZN Mktp UK MB6VM7QE4","15.82","Learning Services","5942","Equipment - Purchase","21/01/2019"
"Wolverhampton City Council","http://opendatacommunities.org/id/metropolitan-district-council/wolverhampton","WP-THE CRATFS COUNCIL","37.00","Creative Studies Delivery Area","8398","Subscriptions","21/01/2019"
"Wolverhampton City Council","http://opendatacommunities.org/id/metropolitan-district-council/wolverhampton","AMZN MKTP UK AMAZON.CO","-9.56","Ernest Bold Court","5942","Books","21/01/2019"
"Wolverhampton City Council","http://opendatacommunities.org/id/metropolitan-district-council/wolverhampton","WOLVERHAMPTON SST","4.50","Contemporary Gallery","4112","Public Transport","18/01/2019"
"Wolverhampton City Council","http://opendatacommunities.org/id/metropolitan-district-council/wolverhampton","THE POST OFFICE","2.26","Art Gallery","9402","Comms - Postage","18/01/2019"
"Wolverhampton City Council","http://opendatacommunities.org/id/metropolitan-district-council/wolverhampton","THE RANGE","182.88","Key to Inspiration","5311","Equipment - Purchase","18/01/2019"
"Wolverhampton City Council","http://opendatacommunities.org/id/metropolitan-district-council/wolverhampton","B&M RETAIL LTD","104.99","Key to Inspiration","5310","Equipment - Purchase","18/01/2019"
"Wolverhampton City Council","http://opendatacommunities.org/id/metropolitan-district-council/wolverhampton","HOME BARGAINS","87.62","Key to Inspiration","5251","Equipment - Purchase","18/01/2019"
"Wolverhampton City Council","http://opendatacommunities.org/id/metropolitan-district-council/wolverhampton","WWW.ARGOS.CO.UK","1094.11","Key to Inspiration","5310","Equipment - Purchase","18/01/2019"
"Wolverhampton City Council","http://opendatacommunities.org/id/metropolitan-district-council/wolverhampton","RIBA SERVICES","116.00","Strategic Asset Management Team","5942","Books","18/01/2019"
"Wolverhampton City Council","http://opendatacommunities.org/id/metropolitan-district-council/wolverhampton","SAINSBURYS (2340)","57.35","Penn Fields Special School","5411","Catering","18/01/2019"
"Wolverhampton City Council","http://opendatacommunities.org/id/metropolitan-district-council/wolverhampton","QUORE MATTO","22.50","Mayoral Expenses","5812","Subsistence","18/01/2019"
"Wolverhampton City Council","http://opendatacommunities.org/id/metropolitan-district-council/wolverhampton","WOLVERHAMPTON CITY COU","23.00","Mayoral Expenses","9399","Services - Fees and Charges","18/01/2019"
"Wolverhampton City Council","http://opendatacommunities.org/id/metropolitan-district-council/wolverhampton","CUMMINGS BROTHERS LOCK","28.33","Caretakers Community Centre","7399","Equipment - Purchase","18/01/2019"
"Wolverhampton City Council","http://opendatacommunities.org/id/metropolitan-district-council/wolverhampton","CUMMINGS BROTHERS LOCK","23.33","Caretakers Community Centre","7399","Equipment - Purchase","18/01/2019"
"Wolverhampton City Council","http://opendatacommunities.org/id/metropolitan-district-council/wolverhampton","CUMMINGS BROTHERS LOCK","80.00","Caretakers Community Centre","7399","Equipment - Purchase","18/01/2019"
"Wolverhampton City Council","http://opendatacommunities.org/id/metropolitan-district-council/wolverhampton","WWW.IKEA.COM","11.37","LAC Transitions Team","5712","Independant Living Allowance","18/01/2019"
"Wolverhampton City Council","http://opendatacommunities.org/id/metropolitan-district-council/wolverhampton","000002200500000","250.00","Childrens with Disabilities Team","6011","No Recourse to Public Funds","18/01/2019"
"Wolverhampton City Council","http://opendatacommunities.org/id/metropolitan-district-council/wolverhampton","POST OFFICE COUNTER","8.60","Adoption and Residence Team & Allowances","9402","Comms - Postage","18/01/2019"
"Wolverhampton City Council","http://opendatacommunities.org/id/metropolitan-district-council/wolverhampton","BAKER ROSS","113.70","Education And Access","5970","Materials","18/01/2019"
"Wolverhampton City Council","http://opendatacommunities.org/id/metropolitan-district-council/wolverhampton","Virgin Trains","-127.00","Fostering Team & Allowances","4112","Public Transport","18/01/2019"
"Wolverhampton City Council","http://opendatacommunities.org/id/metropolitan-district-council/wolverhampton","Virgin Trains","143.65","Fostering Team & Allowances","4112","Public Transport","18/01/2019"
"Wolverhampton City Council","http://opendatacommunities.org/id/metropolitan-district-council/wolverhampton","Virgin Trains","51.20","Fostering Team & Allowances","4112","Public Transport","18/01/2019"
"Wolverhampton City Council","http://opendatacommunities.org/id/metropolitan-district-council/wolverhampton","FACEBK  6456ELAAR2","500.00","Communications & Marketing - General","7311","Marketing \ Non-staff advertising","18/01/2019"
"Wolverhampton City Council","http://opendatacommunities.org/id/metropolitan-district-council/wolverhampton","AMZN Mktp UK MB9M97874","43.40","Bert Williams Leisure Centre","5942","Books","18/01/2019"
"Wolverhampton City Council","http://opendatacommunities.org/id/metropolitan-district-council/wolverhampton","AMZN Mktp UK MB4ZP7844","104.17","Bert Williams Leisure Centre","5942","Books","18/01/2019"
"Wolverhampton City Council","http://opendatacommunities.org/id/metropolitan-district-council/wolverhampton","WEST MID TRAVEL","90.25","Youth Offending Team","4131","Public Transport","18/01/2019"
"Wolverhampton City Council","http://opendatacommunities.org/id/metropolitan-district-council/wolverhampton","BCC REGISTER OFFIC","18.50","LAC Team","9399","Services - Fees and Charges","18/01/2019"
"Wolverhampton City Council","http://opendatacommunities.org/id/metropolitan-district-council/wolverhampton","AMZN Mktp UK MB1ZY9864","21.97","Strategic ICTS (ICT Serv Budget)","5942","Equipment - Purchase","18/01/2019"
"Wolverhampton City Council","http://opendatacommunities.org/id/metropolitan-district-council/wolverhampton","WWW.ARGOS.CO.UK","100.00","Central Baths","5310","Equipment - Purchase","18/01/2019"
"Wolverhampton City Council","http://opendatacommunities.org/id/metropolitan-district-council/wolverhampton","Amazon.co.uk MB35V6824","22.19","Central Baths","5969","Equipment - Purchase","18/01/2019"
"Wolverhampton City Council","http://opendatacommunities.org/id/metropolitan-district-council/wolverhampton","WATERSTONES","25.00","Archives","5942","Books","18/01/2019"
"Wolverhampton City Council","http://opendatacommunities.org/id/metropolitan-district-council/wolverhampton","AMZN MKTP UK MB2YF0BF4","30.40","Community Enablement","5942","Protective Clothing","18/01/2019"
"Wolverhampton City Council","http://opendatacommunities.org/id/metropolitan-district-council/wolverhampton","AMZN Mktp UK MB5PL5BI4","9.67","Community Enablement","5942","Materials","18/01/2019"
"Wolverhampton City Council","http://opendatacommunities.org/id/metropolitan-district-council/wolverhampton","JOHNSTONES DEC CENTRE","38.97","Ernest Bold Court","5231","Equipment - R & M","18/01/2019"
"Wolverhampton City Council","http://opendatacommunities.org/id/metropolitan-district-council/wolverhampton","WWW.CORAM.ORG.UK","117.00","Workforce Development","8398","Services - Supplies & Services to users","18/01/2019"
"Wolverhampton City Council","http://opendatacommunities.org/id/metropolitan-district-council/wolverhampton","WILKO RETAIL LIMIT","2.00","Strategic Director Place","5722","Equipment - Purchase","18/01/2019"
"Wolverhampton City Council","http://opendatacommunities.org/id/metropolitan-district-council/wolverhampton","AMZN Mktp UK MB7XT3B44","7.65","Ernest Bold Court","5942","Equipment - Purchase","18/01/2019"
"Wolverhampton City Council","http://opendatacommunities.org/id/metropolitan-district-council/wolverhampton","Trainline","163.00","Parking Enforcement","4112","Public Transport","18/01/2019"
"Wolverhampton City Council","http://opendatacommunities.org/id/metropolitan-district-council/wolverhampton","NATWEST BANK","200.00","CAT","6011","No Recourse to Public Funds","18/01/2019"
"Wolverhampton City Council","http://opendatacommunities.org/id/metropolitan-district-council/wolverhampton","UNTOUCHABLES","15.47","Education Catering - General Overheads","5231","Materials","18/01/2019"
"Wolverhampton City Council","http://opendatacommunities.org/id/metropolitan-district-council/wolverhampton","WATERSTONES.COM","64.50","Workforce Development","5942","Books","18/01/2019"
"Wolverhampton City Council","http://opendatacommunities.org/id/metropolitan-district-council/wolverhampton","WATERSTONES.COM","249.00","Central Training","5942","Books","18/01/2019"
"Wolverhampton City Council","http://opendatacommunities.org/id/metropolitan-district-council/wolverhampton","CITY OF WOLVERHAMPTON","32.00","Head of Service - CINCP","9399","Services - Professional Fees","18/01/2019"
"Wolverhampton City Council","http://opendatacommunities.org/id/metropolitan-district-council/wolverhampton","CITY OF WOLVERHAMPTON","95.00","Head of Service - CINCP","9399","Services - Professional Fees","18/01/2019"
"Wolverhampton City Council","http://opendatacommunities.org/id/metropolitan-district-council/wolverhampton","J VAN VLIET BIRMINGHAM","52.73","Creative Studies Delivery Area","5399","Materials for resale","18/01/2019"
"Wolverhampton City Council","http://opendatacommunities.org/id/metropolitan-district-council/wolverhampton","AMZN Mktp UK MB5HA6B04","59.82","Music Support Team","5942","Equipment - Purchase","18/01/2019"
"Wolverhampton City Council","http://opendatacommunities.org/id/metropolitan-district-council/wolverhampton","THE BELL HOTEL EPPING","45.83","Mayoral Expenses","7011","Accommodation Costs","18/01/2019"
"Wolverhampton City Council","http://opendatacommunities.org/id/metropolitan-district-council/wolverhampton","BUXTON'S LIMITED","122.67","Northicote Farm","5193","Materials","18/01/2019"
"Wolverhampton City Council","http://opendatacommunities.org/id/metropolitan-district-council/wolverhampton","ARGOS LTD","120.80","Key to Inspiration","5310","Equipment - Purchase","17/01/2019"
"Wolverhampton City Council","http://opendatacommunities.org/id/metropolitan-district-council/wolverhampton","HIGHSTREET VOCUHERS","254.25","IMPACT","8641","Educ Trips, Holidays, Outings, Activity","17/01/2019"
"Wolverhampton City Council","http://opendatacommunities.org/id/metropolitan-district-council/wolverhampton","THE BELL HOTEL EPPING","6.00","Mayoral Expenses","7011","Subsistence","17/01/2019"
"Wolverhampton City Council","http://opendatacommunities.org/id/metropolitan-district-council/wolverhampton","NATWEST BANK","200.00","CAT","6011","No Recourse to Public Funds","17/01/2019"
"Wolverhampton City Council","http://opendatacommunities.org/id/metropolitan-district-council/wolverhampton","POST OFFICE COUNTER","17.20","Adoption and Residence Team & Allowances","9402","Comms - Postage","17/01/2019"
"Wolverhampton City Council","http://opendatacommunities.org/id/metropolitan-district-council/wolverhampton","TESCO STORES 5194","111.65","Towers Outdoor Education Centre","5411","Provisions (Not for resale)","17/01/2019"
"Wolverhampton City Council","http://opendatacommunities.org/id/metropolitan-district-council/wolverhampton","FUEL CARD SERVICES LTD","198.59","Towers Outdoor Education Centre","7399","Petrol","17/01/2019"
"Wolverhampton City Council","http://opendatacommunities.org/id/metropolitan-district-council/wolverhampton","BARCLAYS","250.00","CIN/CP Social Work Unit - Area 6","6011","Financial Assistance In Exceptional Circ","17/01/2019"
"Wolverhampton City Council","http://opendatacommunities.org/id/metropolitan-district-council/wolverhampton","WOLVERHAMPTON T/O","11.50","Education And Access","4112","Public Transport","17/01/2019"
"Wolverhampton City Council","http://opendatacommunities.org/id/metropolitan-district-council/wolverhampton","Amazon.co.uk MB0T39HX4","29.56","Bert Williams Leisure Centre","5969","Equipment - Purchase","17/01/2019"
"Wolverhampton City Council","http://opendatacommunities.org/id/metropolitan-district-council/wolverhampton","WISEPOPS","85.72","City Direct","7372","Computing - Purchase of Software","17/01/2019"
"Wolverhampton City Council","http://opendatacommunities.org/id/metropolitan-district-council/wolverhampton","Virgin Trains","-73.55","LAC Team","4112","Public Transport","17/01/2019"
"Wolverhampton City Council","http://opendatacommunities.org/id/metropolitan-district-council/wolverhampton","NEWITTS.COM","170.66","Central Baths","5655","Equipment - Purchase","17/01/2019"
"Wolverhampton City Council","http://opendatacommunities.org/id/metropolitan-district-council/wolverhampton","Virgin Trains","111.10","LAC Team","4112","Public Transport","17/01/2019"
"Wolverhampton City Council","http://opendatacommunities.org/id/metropolitan-district-council/wolverhampton","Virgin Trains","166.65","LAC Team","4112","Public Transport","17/01/2019"
"Wolverhampton City Council","http://opendatacommunities.org/id/metropolitan-district-council/wolverhampton","ROOKERY  Sainsburys B","20.00","EIP Locality 1","6011","Grant Payments","17/01/2019"
"Wolverhampton City Council","http://opendatacommunities.org/id/metropolitan-district-council/wolverhampton","AMZN Mktp UK MB2HV0HO4","3.73","Community Enablement","5942","Materials","17/01/2019"
"Wolverhampton City Council","http://opendatacommunities.org/id/metropolitan-district-council/wolverhampton","Amazon.co.uk MB61C9HU4","3.69","SEN Sensory Inclusion","5969","Equipment - Purchase","17/01/2019"
"Wolverhampton City Council","http://opendatacommunities.org/id/metropolitan-district-council/wolverhampton","YMLP.COM","87.50","Arts Publicity","7372","Computing - Purchase of Software","17/01/2019"
"Wolverhampton City Council","http://opendatacommunities.org/id/metropolitan-district-council/wolverhampton","ALLISON & STIVEN","1104.95","Private Hire Vehicles","5085","Equipment - Purchase","17/01/2019"
"Wolverhampton City Council","http://opendatacommunities.org/id/metropolitan-district-council/wolverhampton","GOVERNMENT EVENTS","322.15","Central Training","5734","Training Expenses","17/01/2019"
"Wolverhampton City Council","http://opendatacommunities.org/id/metropolitan-district-council/wolverhampton","DULUX DECORATOR CENTRE","6.01","Road Safety","5198","Equipment - Purchase","17/01/2019"
"Wolverhampton City Council","http://opendatacommunities.org/id/metropolitan-district-council/wolverhampton","AMZN Mktp UK MB6RJ6H24","102.30","SEN Early Years Team","5942","Equipment - Purchase","17/01/2019"
"Wolverhampton City Council","http://opendatacommunities.org/id/metropolitan-district-council/wolverhampton","AMZN Mktp UK MB5PM6HR4","41.67","SEN Early Years Team","5942","Equipment - Purchase","17/01/2019"
"Wolverhampton City Council","http://opendatacommunities.org/id/metropolitan-district-council/wolverhampton","WP-STORMFLAME LTD","67.49","SEN Early Years Team","5999","Equipment - Purchase","17/01/2019"
"Wolverhampton City Council","http://opendatacommunities.org/id/metropolitan-district-council/wolverhampton","EUROMOTIVE","58.33","Fleet Management","7538","Equipment - Purchase","17/01/2019"
"Wolverhampton City Council","http://opendatacommunities.org/id/metropolitan-district-council/wolverhampton","AMZN Mktp UK MB7R95HT4","24.20","EIP Locality 7","5942","Equipment - Purchase","17/01/2019"
"Wolverhampton City Council","http://opendatacommunities.org/id/metropolitan-district-council/wolverhampton","BRITISH GAS OTP","9.52","LAC Transitions Team","4900","Accommodation Costs","16/01/2019"
"Wolverhampton City Council","http://opendatacommunities.org/id/metropolitan-district-council/wolverhampton","B&M RETAIL","100.99","LAC Transitions Team","5310","Client Allowances","16/01/2019"
"Wolverhampton City Council","http://opendatacommunities.org/id/metropolitan-district-council/wolverhampton","WM MORRISON FOOD.COM","119.21","Discretionary Fund","5411","Materials","16/01/2019"
"Wolverhampton City Council","http://opendatacommunities.org/id/metropolitan-district-council/wolverhampton","WM MORRISONS STORE","24.70","LAC Transitions Team","5411","Accommodation Costs","16/01/2019"
"Wolverhampton City Council","http://opendatacommunities.org/id/metropolitan-district-council/wolverhampton","BRITISH GAS OTP","9.52","LAC Transitions Team","4900","Accommodation Costs","16/01/2019"
"Wolverhampton City Council","http://opendatacommunities.org/id/metropolitan-district-council/wolverhampton","TRAVELODGE","32.50","Safeguarding Admin Resource","3615","Services - Supplies & Services to users","16/01/2019"
"Wolverhampton City Council","http://opendatacommunities.org/id/metropolitan-district-council/wolverhampton","Trainline","344.22","Safeguarding Admin Resource","4112","Public Transport","16/01/2019"
"Wolverhampton City Council","http://opendatacommunities.org/id/metropolitan-district-council/wolverhampton","SPAR LLANBERIS","4.77","Towers Outdoor Education Centre","5411","Provisions (Not for resale)","16/01/2019"
"Wolverhampton City Council","http://opendatacommunities.org/id/metropolitan-district-council/wolverhampton","GINGER RAY LTD","-10.54","WV Active Marketing","5300","Equipment - Purchase","16/01/2019"
"Wolverhampton City Council","http://opendatacommunities.org/id/metropolitan-district-council/wolverhampton","COSTA COFFEE 43043885","5.00","Service Wide","5814","Marketing \ Non-staff advertising","16/01/2019"
"Wolverhampton City Council","http://opendatacommunities.org/id/metropolitan-district-council/wolverhampton","MARKS&SPENCER PLC SACA","4.68","Business Support Services","5411","Provisions (Not for resale)","16/01/2019"
"Wolverhampton City Council","http://opendatacommunities.org/id/metropolitan-district-council/wolverhampton","Trainline","78.55","LAC Transitions Team","4112","Client Allowances","16/01/2019"
"Wolverhampton City Council","http://opendatacommunities.org/id/metropolitan-district-council/wolverhampton","Trainline","19.23","Youth Offending Team","4112","Public Transport","16/01/2019"
"Wolverhampton City Council","http://opendatacommunities.org/id/metropolitan-district-council/wolverhampton","Amazon.co.uk MB0Y28534","24.56","Strategic ICTS (ICT Serv Budget)","5969","Equipment - Purchase","16/01/2019"
"Wolverhampton City Council","http://opendatacommunities.org/id/metropolitan-district-council/wolverhampton","WWW.WMCA.CO.UK","668.25","Delivery & OCE Development","9399","Public Transport","16/01/2019"
"Wolverhampton City Council","http://opendatacommunities.org/id/metropolitan-district-council/wolverhampton","AMZN Mktp UK MB6ZG7504","3.46","Central Baths","5942","Books","16/01/2019"
"Wolverhampton City Council","http://opendatacommunities.org/id/metropolitan-district-council/wolverhampton","Amazon.co.uk MB03N25E4","35.41","Intensive Family Support Team","5969","Equipment - Purchase","16/01/2019"
"Wolverhampton City Council","http://opendatacommunities.org/id/metropolitan-district-council/wolverhampton","COSTA COFFEE 43043885","5.00","Service Wide","5814","Marketing \ Non-staff advertising","16/01/2019"
"Wolverhampton City Council","http://opendatacommunities.org/id/metropolitan-district-council/wolverhampton","PAYPAL  AUERPACKAGI","41.90","Creative Studies Delivery Area","8931","Equipment - Purchase","16/01/2019"
"Wolverhampton City Council","http://opendatacommunities.org/id/metropolitan-district-council/wolverhampton","ARGOS WOLVERHAMPTO","179.98","LAC Transitions Team","5310","Equipment - Purchase","16/01/2019"
"Wolverhampton City Council","http://opendatacommunities.org/id/metropolitan-district-council/wolverhampton","WICKES","-91.67","Specialist Support Service - North","5211","Equipment - R & M","16/01/2019"
"Wolverhampton City Council","http://opendatacommunities.org/id/metropolitan-district-council/wolverhampton","WEST MID TRAVEL","-138.00","Specialist Support Service - North","4131","Public Transport","16/01/2019"
"Wolverhampton City Council","http://opendatacommunities.org/id/metropolitan-district-council/wolverhampton","AMZN Mktp UK MB42R85S4","70.82","SEN Early Years Team","5942","Equipment - Purchase","16/01/2019"
"Wolverhampton City Council","http://opendatacommunities.org/id/metropolitan-district-council/wolverhampton","AMZN Mktp UK MB5O175P4","82.17","SEN Early Years Team","5942","Equipment - Purchase","16/01/2019"
"Wolverhampton City Council","http://opendatacommunities.org/id/metropolitan-district-council/wolverhampton","TRAVELODGE","-155.67","Adoption and Residence Team & Allowances","3615","Accommodation Costs","16/01/2019"
"Wolverhampton City Council","http://opendatacommunities.org/id/metropolitan-district-council/wolverhampton","TRAVELODGE","211.53","Adoption and Residence Team & Allowances","3615","Accommodation Costs","16/01/2019"
"Wolverhampton City Council","http://opendatacommunities.org/id/metropolitan-district-council/wolverhampton","WWW.WMCA.CO.UK","56.50","IMPACT","9399","Services - Fees and Charges","15/01/2019"
"Wolverhampton City Council","http://opendatacommunities.org/id/metropolitan-district-council/wolverhampton","TVLICENSING.CO.UK","150.50","LAC Transitions Team","7392","Client Allowances","15/01/2019"
"Wolverhampton City Council","http://opendatacommunities.org/id/metropolitan-district-council/wolverhampton","ROYAL BK OF SCOTLAND","250.00","CIN/CP Social Work Unit - Area 6","6011","Section 17","15/01/2019"
"Wolverhampton City Council","http://opendatacommunities.org/id/metropolitan-district-council/wolverhampton","TESCO STORES 5194","44.95","Towers Outdoor Education Centre","5411","Provisions (Not for resale)","15/01/2019"
"Wolverhampton City Council","http://opendatacommunities.org/id/metropolitan-district-council/wolverhampton","BRADFORD COUNCIL","199.00","Delivery & OCE Development","9399","Services - Fees and Charges","15/01/2019"
"Wolverhampton City Council","http://opendatacommunities.org/id/metropolitan-district-council/wolverhampton","Virgin Trains","178.60","Fostering Team & Allowances","4112","Public Transport","15/01/2019"
"Wolverhampton City Council","http://opendatacommunities.org/id/metropolitan-district-council/wolverhampton","GOOGLE  ADS9680351324","500.00","Communications & Marketing - General","5968","Subscriptions","15/01/2019"
"Wolverhampton City Council","http://opendatacommunities.org/id/metropolitan-district-council/wolverhampton","CUMMINGS BROTHERS LOCK","5.00","Mayoral Expenses","7399","Equipment - Purchase","15/01/2019"
"Wolverhampton City Council","http://opendatacommunities.org/id/metropolitan-district-council/wolverhampton","ITUNES.COM/BILL","2.07","LAC Education Team (LACE)","5735","Computing - Purchase of Software","15/01/2019"
"Wolverhampton City Council","http://opendatacommunities.org/id/metropolitan-district-council/wolverhampton","ARGOS WOLVERHAMPTO","3.99","Youth Offending Team","5310","Equipment - Purchase","15/01/2019"
"Wolverhampton City Council","http://opendatacommunities.org/id/metropolitan-district-council/wolverhampton","AMZN Mktp UK MB3EN1VK4","12.48","Public Health Support Costs","5942","Equipment - Purchase","15/01/2019"
"Wolverhampton City Council","http://opendatacommunities.org/id/metropolitan-district-council/wolverhampton","WM MORRISONS STORE","37.88","EIP Locality 6","5411","Provisions (Not for resale)","15/01/2019"
"Wolverhampton City Council","http://opendatacommunities.org/id/metropolitan-district-council/wolverhampton","AMZN Mktp UK MB5RD6VV4","24.16","EIP Locality 6","5942","Computing - Consumables","15/01/2019"
"Wolverhampton City Council","http://opendatacommunities.org/id/metropolitan-district-council/wolverhampton","AMZN MKTP UK MB1S04VZ4","9.56","Ernest Bold Court","5942","Services - Supplies & Services to users","15/01/2019"
"Wolverhampton City Council","http://opendatacommunities.org/id/metropolitan-district-council/wolverhampton","Trainline","19.08","CIN/CP Social Work Unit - Area 8","4112","Public Transport","15/01/2019"
"Wolverhampton City Council","http://opendatacommunities.org/id/metropolitan-district-council/wolverhampton","Amazon.co.uk MB9MB4MM4","22.57","Global Budgets","5969","Books","15/01/2019"
"Wolverhampton City Council","http://opendatacommunities.org/id/metropolitan-district-council/wolverhampton","ASDA GROCERIES ONLINE","-2.85","Ernest Bold Court","5411","Provisions (Not for resale)","15/01/2019"
"Wolverhampton City Council","http://opendatacommunities.org/id/metropolitan-district-council/wolverhampton","LOCKERTEK LTD","62.92","Central Baths","5046","Equipment - Purchase","15/01/2019"
"Wolverhampton City Council","http://opendatacommunities.org/id/metropolitan-district-council/wolverhampton","ASDA GROCERIES ONLINE","3.00","Upper Pendeford Farm Childrens Home","5411","Provisions (Not for resale)","15/01/2019"
"Wolverhampton City Council","http://opendatacommunities.org/id/metropolitan-district-council/wolverhampton","ASDA GROCERIES ONLINE","43.71","Ernest Bold Court","5411","Provisions (Not for resale)","15/01/2019"
"Wolverhampton City Council","http://opendatacommunities.org/id/metropolitan-district-council/wolverhampton","WP-CENTRAL TAXIS L","5.76","LAC Team","4121","Client Transport","15/01/2019"
"Wolverhampton City Council","http://opendatacommunities.org/id/metropolitan-district-council/wolverhampton","AMZN Mktp UK MB8S76VV4","39.98","SEN Early Years Team","5942","Equipment - Purchase","15/01/2019"
"Wolverhampton City Council","http://opendatacommunities.org/id/metropolitan-district-council/wolverhampton","LOYD 89 CHURCH STREET","50.00","Ernest Bold Court","6011","Fixtures and Fittings - R&M","15/01/2019"
"Wolverhampton City Council","http://opendatacommunities.org/id/metropolitan-district-council/wolverhampton","Trainline","-6.00","CIN/CP Social Work Unit - Area 8","4112","Section 17","15/01/2019"
"Wolverhampton City Council","http://opendatacommunities.org/id/metropolitan-district-council/wolverhampton","ARGOS LTD","22.91","Duke Street Bungalows","5310","Provisions (Not for resale)","15/01/2019"
"Wolverhampton City Council","http://opendatacommunities.org/id/metropolitan-district-council/wolverhampton","Central Taxis Limited","3.40","MASH","4121","Section 17","14/01/2019"
"Wolverhampton City Council","http://opendatacommunities.org/id/metropolitan-district-council/wolverhampton","HOMEBASE LTD 103","108.00","Wolverhampton Indoor and Open Market","5211","Materials","14/01/2019"
"Wolverhampton City Council","http://opendatacommunities.org/id/metropolitan-district-council/wolverhampton","Amazon.co.uk MB63R3PT4","49.90","Global Budgets","5969","Books","14/01/2019"
"Wolverhampton City Council","http://opendatacommunities.org/id/metropolitan-district-council/wolverhampton","AMZN MKTP UK MB90T3P84","67.23","Education And Access","5942","Books","14/01/2019"
"Wolverhampton City Council","http://opendatacommunities.org/id/metropolitan-district-council/wolverhampton","ASDA GROCERIES ONLINE","62.84","Ernest Bold Court","5411","Provisions (Not for resale)","14/01/2019"
"Wolverhampton City Council","http://opendatacommunities.org/id/metropolitan-district-council/wolverhampton","HERON FOODS LTD","24.30","Ernest Bold Court","5499","Catering","14/01/2019"
"Wolverhampton City Council","http://opendatacommunities.org/id/metropolitan-district-council/wolverhampton","Trainline","71.73","Older People Assessment & Care Mgmt","4112","Public Transport","14/01/2019"
"Wolverhampton City Council","http://opendatacommunities.org/id/metropolitan-district-council/wolverhampton","WWW.REDSPOTTEDHANK","168.80","CIN/CP Social Work Unit - Area 5","4112","Section 17","14/01/2019"
"Wolverhampton City Council","http://opendatacommunities.org/id/metropolitan-district-council/wolverhampton","ASDA GROCERIES ONLINE","32.63","Creative Studies Delivery Area","5411","Provisions (Not for resale)","14/01/2019"
"Wolverhampton City Council","http://opendatacommunities.org/id/metropolitan-district-council/wolverhampton","WWW.ICELAND.CO.UK","52.08","Bradley Resource Centre","5411","Provisions (Not for resale)","14/01/2019"
"Wolverhampton City Council","http://opendatacommunities.org/id/metropolitan-district-council/wolverhampton","ARGOS LTD","9.17","LAC Transitions Team","5310","Client Allowances","14/01/2019"
"Wolverhampton City Council","http://opendatacommunities.org/id/metropolitan-district-council/wolverhampton","BETTWS MOTORS LIMITED","172.47","Towers Outdoor Education Centre","7538","Equipment - Purchase","14/01/2019"
"Wolverhampton City Council","http://opendatacommunities.org/id/metropolitan-district-council/wolverhampton","TESCO DELIVERY SAVER2","3.49","Towers Outdoor Education Centre","5968","Provisions (Not for resale)","14/01/2019"
"Wolverhampton City Council","http://opendatacommunities.org/id/metropolitan-district-council/wolverhampton","COSTA COFFEE 43043885","4.29","Economic Development","5814","Educ Trips, Holidays, Outings, Activity","14/01/2019"
"Wolverhampton City Council","http://opendatacommunities.org/id/metropolitan-district-council/wolverhampton","FACEBK  UQPW8KWAR2","500.00","Communications & Marketing - General","7311","Marketing \ Non-staff advertising","14/01/2019"
"Wolverhampton City Council","http://opendatacommunities.org/id/metropolitan-district-council/wolverhampton","HALX WOLVERHAMPTON CIT","90.00","Wholly Owned Company - Operations","6011","Financial Assistance In Exceptional Circ","14/01/2019"
"Wolverhampton City Council","http://opendatacommunities.org/id/metropolitan-district-council/wolverhampton","WWW.WMCA.CO.UK","294.00","Controlling Migration fund","9399","Services - Fees and Charges","14/01/2019"
"Wolverhampton City Council","http://opendatacommunities.org/id/metropolitan-district-council/wolverhampton","Amazon.co.uk MB3OR3GY4","249.00","Mental Health Assessment & Care Mgmt","5969","Books","14/01/2019"
"Wolverhampton City Council","http://opendatacommunities.org/id/metropolitan-district-council/wolverhampton","NAMESCO","34.97","HR Advice","4816","Computing - Purchase of Software","14/01/2019"
"Wolverhampton City Council","http://opendatacommunities.org/id/metropolitan-district-council/wolverhampton","Trainline","241.15","EIP Locality 6","4112","Public Transport","14/01/2019"
"Wolverhampton City Council","http://opendatacommunities.org/id/metropolitan-district-council/wolverhampton","Virgin Trains","83.55","LAC Team","4112","Public Transport","14/01/2019"
"Wolverhampton City Council","http://opendatacommunities.org/id/metropolitan-district-council/wolverhampton","HOTELS.COM154865454308","75.01","LAC Team","4722","Accommodation Costs","14/01/2019"
"Wolverhampton City Council","http://opendatacommunities.org/id/metropolitan-district-council/wolverhampton","WWW.WMCA.CO.UK","6.75","Delivery & OCE Development","9399","Public Transport","14/01/2019"
"Wolverhampton City Council","http://opendatacommunities.org/id/metropolitan-district-council/wolverhampton","CardtronicsUK","200.00","CAT","6011","No Recourse to Public Funds","14/01/2019"
"Wolverhampton City Council","http://opendatacommunities.org/id/metropolitan-district-council/wolverhampton","TRAVELODGE","30.00","Court Team","3615","Accommodation Costs","14/01/2019"
"Wolverhampton City Council","http://opendatacommunities.org/id/metropolitan-district-council/wolverhampton","NATWEST BANK","200.00","CAT","6011","No Recourse to Public Funds","14/01/2019"
"Wolverhampton City Council","http://opendatacommunities.org/id/metropolitan-district-council/wolverhampton","STOURBRIDGE JCT T/O","170.70","SEN Early Years Team","4112","Public Transport","14/01/2019"
"Wolverhampton City Council","http://opendatacommunities.org/id/metropolitan-district-council/wolverhampton","GRO HM PASSPORT OFFICE","15.42","LAC Transitions Team","9399","Client Allowances","11/01/2019"
"Wolverhampton City Council","http://opendatacommunities.org/id/metropolitan-district-council/wolverhampton","B&M RETAIL LTD","88.93","LAC Transitions Team","5310","Client Allowances","11/01/2019"
"Wolverhampton City Council","http://opendatacommunities.org/id/metropolitan-district-council/wolverhampton","WM MORRISON FOOD.COM","128.34","Discretionary Fund","5411","Materials","11/01/2019"
"Wolverhampton City Council","http://opendatacommunities.org/id/metropolitan-district-council/wolverhampton","AMZN MKTP UK MB5GQ0114","7.07","LAC Transitions Team","5942","Accommodation Costs","11/01/2019"
"Wolverhampton City Council","http://opendatacommunities.org/id/metropolitan-district-council/wolverhampton","000002200500000","250.00","Childrens with Disabilities Team","6011","Financial Assistance In Exceptional Circ","11/01/2019"
"Wolverhampton City Council","http://opendatacommunities.org/id/metropolitan-district-council/wolverhampton","TESCO STORES 5194","-4.08","Towers Outdoor Education Centre","5411","Provisions (Not for resale)","11/01/2019"
"Wolverhampton City Council","http://opendatacommunities.org/id/metropolitan-district-council/wolverhampton","CURRYS ONLINE","250.00","Towers Outdoor Education Centre","5732","Equipment - Purchase","11/01/2019"
"Wolverhampton City Council","http://opendatacommunities.org/id/metropolitan-district-council/wolverhampton","LAKELAND.LIMITED","38.65","Towers Outdoor Education Centre","5399","Fixtures and Fittings - Purchases","11/01/2019"
"Wolverhampton City Council","http://opendatacommunities.org/id/metropolitan-district-council/wolverhampton","WWW.FITNESS-SUPERSTORE","167.88","Aldersley Leisure Village","5941","Equipment - Purchase","11/01/2019"
"Wolverhampton City Council","http://opendatacommunities.org/id/metropolitan-district-council/wolverhampton","Virgin Trains","137.00","Fostering Team & Allowances","4112","Public Transport","11/01/2019"
"Wolverhampton City Council","http://opendatacommunities.org/id/metropolitan-district-council/wolverhampton","DRI Flickr","39.90","Communications & Marketing - General","5734","Computing - Purchase of Software","11/01/2019"
"Wolverhampton City Council","http://opendatacommunities.org/id/metropolitan-district-council/wolverhampton","PRODUCT SUPPORT AG","6.66","Headstart - Young People Engagement","5968","Computing - Maint Agreements","11/01/2019"
"Wolverhampton City Council","http://opendatacommunities.org/id/metropolitan-district-council/wolverhampton","PRODUCT SUPPORT AG","6.66","Headstart - Young People Engagement","5968","Computing - Maint Agreements","11/01/2019"
"Wolverhampton City Council","http://opendatacommunities.org/id/metropolitan-district-council/wolverhampton","WWW.DOMINOS.CO.UK","41.60","Headstart - Young People Engagement","5812","Catering","11/01/2019"
"Wolverhampton City Council","http://opendatacommunities.org/id/metropolitan-district-council/wolverhampton","RESPONSTER PLUS PLAN","15.37","City Direct","5734","Computing - Purchase of Software","11/01/2019"
"Wolverhampton City Council","http://opendatacommunities.org/id/metropolitan-district-council/wolverhampton","SCREWFIX DIRECT LT","35.12","Cemeteries","5211","Materials","11/01/2019"
"Wolverhampton City Council","http://opendatacommunities.org/id/metropolitan-district-council/wolverhampton","Trainline","115.38","LAC Team","4112","Public Transport","11/01/2019"
"Wolverhampton City Council","http://opendatacommunities.org/id/metropolitan-district-council/wolverhampton","Trainline","140.92","LAC Team","4112","Public Transport","11/01/2019"
"Wolverhampton City Council","http://opendatacommunities.org/id/metropolitan-district-council/wolverhampton","EBUYER (UK) LTD","254.95","Strategic ICTS (ICT Serv Budget)","5722","Equipment - Purchase","11/01/2019"
"Wolverhampton City Council","http://opendatacommunities.org/id/metropolitan-district-council/wolverhampton","WWW.JUSTGLOVES.CO.UK","110.00","Central Baths","5999","Equipment - Purchase","11/01/2019"
"Wolverhampton City Council","http://opendatacommunities.org/id/metropolitan-district-council/wolverhampton","WICKES BUILDING","10.83","Central Baths","5211","Materials","11/01/2019"
"Wolverhampton City Council","http://opendatacommunities.org/id/metropolitan-district-council/wolverhampton","THORNTONS LTD","8.10","Upper Pendeford Farm Childrens Home","5441","Catering","11/01/2019"
"Wolverhampton City Council","http://opendatacommunities.org/id/metropolitan-district-council/wolverhampton","ALDI 78 772","227.53","Upper Pendeford Farm Childrens Home","5411","Provisions (Not for resale)","11/01/2019"
"Wolverhampton City Council","http://opendatacommunities.org/id/metropolitan-district-council/wolverhampton","WOLVERHAMPTON BOX STOR","13.45","Upper Pendeford Farm Childrens Home","5441","Catering","11/01/2019"
"Wolverhampton City Council","http://opendatacommunities.org/id/metropolitan-district-council/wolverhampton","AMZ Amazon.co.uk","-112.00","Foundation Studies","5969","Equipment - Purchase","11/01/2019"
"Wolverhampton City Council","http://opendatacommunities.org/id/metropolitan-district-council/wolverhampton","WWW.ARGOS.CO.UK","219.90","Business Support Services","5310","Equipment - Purchase","11/01/2019"
"Wolverhampton City Council","http://opendatacommunities.org/id/metropolitan-district-council/wolverhampton","WWW.VALENTINECLAYS.CO.","146.22","Creative Studies Delivery Area","5945","Equipment - Purchase","11/01/2019"
"Wolverhampton City Council","http://opendatacommunities.org/id/metropolitan-district-council/wolverhampton","AMZN Mktp UK MB8ZA41F4","7.99","Creative Studies Delivery Area","5942","Equipment - Purchase","11/01/2019"
"Wolverhampton City Council","http://opendatacommunities.org/id/metropolitan-district-council/wolverhampton","AMZN Mktp UK MB6286004","15.18","Educational Studies Delivery Area","5942","Equipment - Purchase","11/01/2019"
"Wolverhampton City Council","http://opendatacommunities.org/id/metropolitan-district-council/wolverhampton","AMZN Mktp UK MB4K320H4","24.92","Business Support Services","5942","Equipment - Purchase","11/01/2019"
"Wolverhampton City Council","http://opendatacommunities.org/id/metropolitan-district-council/wolverhampton","Cross Country Trains","33.70","MASH","4112","Section 17","11/01/2019"
"Wolverhampton City Council","http://opendatacommunities.org/id/metropolitan-district-council/wolverhampton","WWW.WOLVERHAMPTON.GOV.","336.90","LAC Transitions Team","9399","Client Allowances","11/01/2019"
"Wolverhampton City Council","http://opendatacommunities.org/id/metropolitan-district-council/wolverhampton","WWW.WOLVERHAMPTON.GOV.","500.00","LAC Transitions Team","9399","Client Allowances","11/01/2019"
"Wolverhampton City Council","http://opendatacommunities.org/id/metropolitan-district-council/wolverhampton","WWW.WOLVERHAMPTON.GOV.","443.20","LAC Transitions Team","9399","Client Allowances","11/01/2019"
"Wolverhampton City Council","http://opendatacommunities.org/id/metropolitan-district-council/wolverhampton","WWW.WOLVERHAMPTON.GOV.","500.00","LAC Transitions Team","9399","Client Allowances","11/01/2019"
"Wolverhampton City Council","http://opendatacommunities.org/id/metropolitan-district-council/wolverhampton","WWW.WOLVERHAMPTON.GOV.","441.16","LAC Transitions Team","9399","Client Allowances","11/01/2019"
"Wolverhampton City Council","http://opendatacommunities.org/id/metropolitan-district-council/wolverhampton","WWW.WOLVERHAMPTON.GOV.","500.00","LAC Transitions Team","9399","Client Allowances","11/01/2019"
"Wolverhampton City Council","http://opendatacommunities.org/id/metropolitan-district-council/wolverhampton","AMZ Amazon.co.uk","-2.99","Archives","5969","Books","11/01/2019"
"Wolverhampton City Council","http://opendatacommunities.org/id/metropolitan-district-council/wolverhampton","Amazon.co.uk MB2LZ51G4","10.98","Archives","5969","Books","11/01/2019"
"Wolverhampton City Council","http://opendatacommunities.org/id/metropolitan-district-council/wolverhampton","AMZN Mktp UK MB1421184","28.48","Wolverhampton Indoor and Open Market","5942","Books","11/01/2019"
"Wolverhampton City Council","http://opendatacommunities.org/id/metropolitan-district-council/wolverhampton","CardtronicsUK","10.00","EIP Locality 1","6011","Grant Payments","11/01/2019"
"Wolverhampton City Council","http://opendatacommunities.org/id/metropolitan-district-council/wolverhampton","CURRYS S/S","55.81","Condition Surveys","5732","Equipment - Purchase","11/01/2019"
"Wolverhampton City Council","http://opendatacommunities.org/id/metropolitan-district-council/wolverhampton","WWW.ARGOS.CO.UK","49.12","Community Enablement","5310","Equipment - Purchase","11/01/2019"
"Wolverhampton City Council","http://opendatacommunities.org/id/metropolitan-district-council/wolverhampton","WWW.ARGOS.CO.UK","508.32","Community Enablement","5310","Equipment - Purchase","11/01/2019"
"Wolverhampton City Council","http://opendatacommunities.org/id/metropolitan-district-council/wolverhampton","CardtronicsUK","240.00","CAT","6011","No Recourse to Public Funds","11/01/2019"
"Wolverhampton City Council","http://opendatacommunities.org/id/metropolitan-district-council/wolverhampton","WWW.GOV.UK","10.00","Revenues","8999","Services - Professional Fees","11/01/2019"
"Wolverhampton City Council","http://opendatacommunities.org/id/metropolitan-district-council/wolverhampton","PREMIER INN","161.67","SEN Sensory Inclusion","3811","Equipment - Purchase","11/01/2019"
"Wolverhampton City Council","http://opendatacommunities.org/id/metropolitan-district-council/wolverhampton","THE MIDLAND","-275.00","Children & Young People Support Costs","7011","Services - Supplies & Services to users","11/01/2019"
"Wolverhampton City Council","http://opendatacommunities.org/id/metropolitan-district-council/wolverhampton","THE MAKATON CHARIT","139.90","Learning Technologies","8299","Training Expenses","11/01/2019"
"Wolverhampton City Council","http://opendatacommunities.org/id/metropolitan-district-council/wolverhampton","Trainline","8.14","Education And Access","4112","Public Transport","11/01/2019"
"Wolverhampton City Council","http://opendatacommunities.org/id/metropolitan-district-council/wolverhampton","AMZN MKTP UK MB84Y20Q4","9.51","Education And Access","5942","Books","11/01/2019"
"Wolverhampton City Council","http://opendatacommunities.org/id/metropolitan-district-council/wolverhampton","WWW.CORAM.ORG.UK","234.00","Workforce Development","8398","Services - Supplies & Services to users","11/01/2019"
"Wolverhampton City Council","http://opendatacommunities.org/id/metropolitan-district-council/wolverhampton","THE MIDLAND","-330.00","Service Director Adults","7011","Services - Supplies & Services to users","11/01/2019"
"Wolverhampton City Council","http://opendatacommunities.org/id/metropolitan-district-council/wolverhampton","Trainline","71.73","Service Director Adults","4112","Public Transport","11/01/2019"
"Wolverhampton City Council","http://opendatacommunities.org/id/metropolitan-district-council/wolverhampton","PAYPAL  POLY POSTAL","106.00","Environmental Crime and Consumer Protect","7399","Equipment - Purchase","11/01/2019"
"Wolverhampton City Council","http://opendatacommunities.org/id/metropolitan-district-council/wolverhampton","NATWEST BANK","200.00","CAT","6011","No Recourse to Public Funds","11/01/2019"
"Wolverhampton City Council","http://opendatacommunities.org/id/metropolitan-district-council/wolverhampton","NATWEST BANK","200.00","CAT","6011","No Recourse to Public Funds","11/01/2019"
"Wolverhampton City Council","http://opendatacommunities.org/id/metropolitan-district-council/wolverhampton","EE STORE R501","8.33","School Crossing Patrol","4814","Comms - Telephone Call charges","11/01/2019"
"Wolverhampton City Council","http://opendatacommunities.org/id/metropolitan-district-council/wolverhampton","DVSA","205.00","Fleet Management","9399","Equipment - Purchase","11/01/2019"
"Wolverhampton City Council","http://opendatacommunities.org/id/metropolitan-district-council/wolverhampton","J VAN VLIET BIRMINGHAM","65.77","Creative Studies Delivery Area","5399","Materials for resale","11/01/2019"
"Wolverhampton City Council","http://opendatacommunities.org/id/metropolitan-district-council/wolverhampton","Trainline","35.46","CIN/CP Social Work Unit - Area 4","4112","Section 17","11/01/2019"
"Wolverhampton City Council","http://opendatacommunities.org/id/metropolitan-district-council/wolverhampton","Trainline","9.92","CIN/CP Social Work Unit - Area 8","4112","Section 17","11/01/2019"
"Wolverhampton City Council","http://opendatacommunities.org/id/metropolitan-district-council/wolverhampton","PREMIER INN","145.00","Adoption and Residence Team & Allowances","3811","Accommodation Costs","11/01/2019"
"Wolverhampton City Council","http://opendatacommunities.org/id/metropolitan-district-council/wolverhampton","PREMIER INN","244.17","Adoption and Residence Team & Allowances","3811","Accommodation Costs","11/01/2019"
"Wolverhampton City Council","http://opendatacommunities.org/id/metropolitan-district-council/wolverhampton","WULFRUN CAMPUS","50.00","IMPACT","8220","Training Expenses","10/01/2019"
"Wolverhampton City Council","http://opendatacommunities.org/id/metropolitan-district-council/wolverhampton","Trainline","286.94","EIP Locality 8","4112","Public Transport","10/01/2019"
"Wolverhampton City Council","http://opendatacommunities.org/id/metropolitan-district-council/wolverhampton","HM PASSPORT OFFICE","62.92","LAC Transitions Team","9399","Client Allowances","10/01/2019"
"Wolverhampton City Council","http://opendatacommunities.org/id/metropolitan-district-council/wolverhampton","Trainline","348.85","Electoral Registration","4112","Public Transport","10/01/2019"
"Wolverhampton City Council","http://opendatacommunities.org/id/metropolitan-district-council/wolverhampton","BLOXWICH  SST","6.17","Economic Development","4112","Public Transport","10/01/2019"
"Wolverhampton City Council","http://opendatacommunities.org/id/metropolitan-district-council/wolverhampton","PREMIER INN","82.08","Fostering Team & Allowances","3811","Services - Supplies & Services to users","10/01/2019"
"Wolverhampton City Council","http://opendatacommunities.org/id/metropolitan-district-council/wolverhampton","Trainline","70.72","Headstart - Young People Engagement","4112","Public Transport","10/01/2019"
"Wolverhampton City Council","http://opendatacommunities.org/id/metropolitan-district-council/wolverhampton","Trainline","358.67","Headstart - Young People Engagement","4112","Public Transport","10/01/2019"
"Wolverhampton City Council","http://opendatacommunities.org/id/metropolitan-district-council/wolverhampton","A & F CATERING SPECIAL","7.00","B-Safe","5812","Catering","10/01/2019"
"Wolverhampton City Council","http://opendatacommunities.org/id/metropolitan-district-council/wolverhampton","T.A. HENN & SON LTD","16.67","Mayoral Expenses","5944","Services - Professional Fees","10/01/2019"
"Wolverhampton City Council","http://opendatacommunities.org/id/metropolitan-district-council/wolverhampton","WWW.POPPYLOTTERY.SAFEA","222.00","Mayoral Expenses","8398","Equipment - Purchase","10/01/2019"
"Wolverhampton City Council","http://opendatacommunities.org/id/metropolitan-district-council/wolverhampton","MARKS&SPENCER PLC SACA","5.00","Business Support Services","5411","Provisions (Not for resale)","10/01/2019"
"Wolverhampton City Council","http://opendatacommunities.org/id/metropolitan-district-council/wolverhampton","AMZN Mktp UK MB87L8E24","16.79","Business Support Services","5942","Catering","10/01/2019"
"Wolverhampton City Council","http://opendatacommunities.org/id/metropolitan-district-council/wolverhampton","Amazon.co.uk MB4I91E04","57.61","LAC Transitions Team","5969","Client Allowances","10/01/2019"
"Wolverhampton City Council","http://opendatacommunities.org/id/metropolitan-district-council/wolverhampton","JOHNSONS","9.17","Cemeteries","7210","Equipment - R & M","10/01/2019"
"Wolverhampton City Council","http://opendatacommunities.org/id/metropolitan-district-council/wolverhampton","AMZN Mktp UK MB94K5E14","99.92","Central Baths","5942","Books","10/01/2019"
"Wolverhampton City Council","http://opendatacommunities.org/id/metropolitan-district-council/wolverhampton","ICELAND","2.00","Upper Pendeford Farm Childrens Home","5411","Provisions (Not for resale)","10/01/2019"
"Wolverhampton City Council","http://opendatacommunities.org/id/metropolitan-district-council/wolverhampton","PATISSERIE VALERIE","34.65","Upper Pendeford Farm Childrens Home","5812","Educ Trips, Holidays, Outings, Activity","10/01/2019"
"Wolverhampton City Council","http://opendatacommunities.org/id/metropolitan-district-council/wolverhampton","ASDA GROCERIES ONLINE","5.00","Upper Pendeford Farm Childrens Home","5411","Provisions (Not for resale)","10/01/2019"
"Wolverhampton City Council","http://opendatacommunities.org/id/metropolitan-district-council/wolverhampton","Amazon.co.uk MB4BT9E54","67.70","Foundation Studies","5969","Equipment - Purchase","10/01/2019"
"Wolverhampton City Council","http://opendatacommunities.org/id/metropolitan-district-council/wolverhampton","Amazon Prime MB7OF9E34","6.66","Service Wide","5968","Subscriptions","10/01/2019"
"Wolverhampton City Council","http://opendatacommunities.org/id/metropolitan-district-council/wolverhampton","LIDL UK WOLVERHAMPTON","7.52","Learning Disabilities Management","5411","Services - Consultants","10/01/2019"
"Wolverhampton City Council","http://opendatacommunities.org/id/metropolitan-district-council/wolverhampton","Amazon.co.uk MB4E76EI4","56.04","Global Budgets","5969","Books","10/01/2019"
"Wolverhampton City Council","http://opendatacommunities.org/id/metropolitan-district-council/wolverhampton","Amazon.co.uk MB5X49ED4","15.50","Education And Access","5969","Equipment - Purchase","10/01/2019"
"Wolverhampton City Council","http://opendatacommunities.org/id/metropolitan-district-council/wolverhampton","Virgin Trains","183.60","Food & Consumer Safety","4112","Services - Fees and Charges","10/01/2019"
"Wolverhampton City Council","http://opendatacommunities.org/id/metropolitan-district-council/wolverhampton","AMZN Mktp UK MB91E5EK4","64.33","Environmental Crime and Consumer Protect","5942","Equipment - Purchase","10/01/2019"
"Wolverhampton City Council","http://opendatacommunities.org/id/metropolitan-district-council/wolverhampton","WWW.CARESHOP.CO.UK","112.75","Bradley Resource Centre","5999","Equipment - Purchase","10/01/2019"
"Wolverhampton City Council","http://opendatacommunities.org/id/metropolitan-district-council/wolverhampton","WEST MID TRAVEL","138.00","Specialist Support Service - North","4131","Public Transport","10/01/2019"
"Wolverhampton City Council","http://opendatacommunities.org/id/metropolitan-district-council/wolverhampton","ASDA SUPERSTORE","-69.96","Duke Street Bungalows","5411","Provisions (Not for resale)","10/01/2019"
"Wolverhampton City Council","http://opendatacommunities.org/id/metropolitan-district-council/wolverhampton","ASDA SUPERSTORE","41.67","Duke Street Bungalows","5411","R4010","10/01/2019"
"Wolverhampton City Council","http://opendatacommunities.org/id/metropolitan-district-council/wolverhampton","AMZN Mktp UK MB3DQ70B4","9.99","Fleet Management","5942","Equipment - Purchase","10/01/2019"
"Wolverhampton City Council","http://opendatacommunities.org/id/metropolitan-district-council/wolverhampton","TRAVELODGE","155.67","Adoption and Residence Team & Allowances","3615","Accommodation Costs","10/01/2019"
"Wolverhampton City Council","http://opendatacommunities.org/id/metropolitan-district-council/wolverhampton","Virgin Trains","125.60","Corporate Procurement Unit","4112","Public Transport","09/01/2019"
"Wolverhampton City Council","http://opendatacommunities.org/id/metropolitan-district-council/wolverhampton","ASDA STORE 4753","19.26","Bradley Resource Centre","5411","Provisions (Not for resale)","09/01/2019"
"Wolverhampton City Council","http://opendatacommunities.org/id/metropolitan-district-council/wolverhampton","APPLE ONLINE STORE GBP","25.00","Strategic ICTS (ICT Serv Budget)","5732","Computing - Consumables","09/01/2019"
"Wolverhampton City Council","http://opendatacommunities.org/id/metropolitan-district-council/wolverhampton","PAYPAL  QUICKPRINTU","96.00","Mayor's Charity","7311","Printing","09/01/2019"
"Wolverhampton City Council","http://opendatacommunities.org/id/metropolitan-district-council/wolverhampton","B&M RETAIL LTD","80.97","LAC Transitions Team","5310","Client Allowances","09/01/2019"
"Wolverhampton City Council","http://opendatacommunities.org/id/metropolitan-district-council/wolverhampton","IKEA LTD 142 BIRMINGHA","42.25","LAC Transitions Team","5712","Client Allowances","09/01/2019"
"Wolverhampton City Council","http://opendatacommunities.org/id/metropolitan-district-council/wolverhampton","ROYAL BK OF SCOTLAND","250.00","CIN/CP Social Work Unit - Area 6","6011","Section 17","09/01/2019"
"Wolverhampton City Council","http://opendatacommunities.org/id/metropolitan-district-council/wolverhampton","TESCO STORES 5194","330.21","Towers Outdoor Education Centre","5411","Provisions (Not for resale)","09/01/2019"
"Wolverhampton City Council","http://opendatacommunities.org/id/metropolitan-district-council/wolverhampton","WWW.LEISURE.ORDNANCE","5.99","Towers Outdoor Education Centre","9399","Equipment - Purchase","09/01/2019"
"Wolverhampton City Council","http://opendatacommunities.org/id/metropolitan-district-council/wolverhampton","Virgin Trains","186.00","Fostering Team & Allowances","4112","Public Transport","09/01/2019"
"Wolverhampton City Council","http://opendatacommunities.org/id/metropolitan-district-council/wolverhampton","CARPETRUNNERSUK.CO.UK","58.10","WV Active Marketing","5713","Equipment - Purchase","09/01/2019"
"Wolverhampton City Council","http://opendatacommunities.org/id/metropolitan-district-council/wolverhampton","Trainline","63.59","LAC Transitions Team","4112","Client Allowances","09/01/2019"
"Wolverhampton City Council","http://opendatacommunities.org/id/metropolitan-district-council/wolverhampton","AMZN Mktp UK MB2HJ5AM4","298.79","LAC Transitions Team","5942","Client Allowances","09/01/2019"
"Wolverhampton City Council","http://opendatacommunities.org/id/metropolitan-district-council/wolverhampton","Amazon Prime MB4JJ3TK4","6.66","Upper Pendeford Farm Childrens Home","5968","Subscriptions","09/01/2019"
"Wolverhampton City Council","http://opendatacommunities.org/id/metropolitan-district-council/wolverhampton","SSE","34.63","LAC Transitions Team","4900","Client Allowances","09/01/2019"
"Wolverhampton City Council","http://opendatacommunities.org/id/metropolitan-district-council/wolverhampton","SSE","40.57","LAC Transitions Team","4900","Client Allowances","09/01/2019"
"Wolverhampton City Council","http://opendatacommunities.org/id/metropolitan-district-council/wolverhampton","ASDA SUPERSTORE","88.75","LAC Transitions Team","5411","Client Allowances","09/01/2019"
"Wolverhampton City Council","http://opendatacommunities.org/id/metropolitan-district-council/wolverhampton","SECURITY INDUSTRY","220.00","Traffic Signals","7393","Computing - Purchase of Hardware","09/01/2019"
"Wolverhampton City Council","http://opendatacommunities.org/id/metropolitan-district-council/wolverhampton","Amazon.co.uk MB0F75AO4","124.99","Learning Disabilities Management","5969","Equipment - Purchase","09/01/2019"
"Wolverhampton City Council","http://opendatacommunities.org/id/metropolitan-district-council/wolverhampton","CardtronicsUK","200.00","CAT","6011","No Recourse to Public Funds","09/01/2019"
"Wolverhampton City Council","http://opendatacommunities.org/id/metropolitan-district-council/wolverhampton","Trainline","20.30","SEN Special Education Admin","4112","Public Transport","09/01/2019"
"Wolverhampton City Council","http://opendatacommunities.org/id/metropolitan-district-council/wolverhampton","IDC WRISTBANDS","164.85","Technical Support","5699","Equipment - Purchase","09/01/2019"
"Wolverhampton City Council","http://opendatacommunities.org/id/metropolitan-district-council/wolverhampton","WICKES","163.33","Specialist Support Service - North","5211","Equipment - R & M","09/01/2019"
"Wolverhampton City Council","http://opendatacommunities.org/id/metropolitan-district-council/wolverhampton","TVLICENSING.CO.UK","125.42","LAC Transitions Team","7392","Client Allowances","09/01/2019"
"Wolverhampton City Council","http://opendatacommunities.org/id/metropolitan-district-council/wolverhampton","AMZN Mktp UK MB1ZV5AI4","19.92","Environmental Crime and Consumer Protect","5942","Equipment - Purchase","09/01/2019"
"Wolverhampton City Council","http://opendatacommunities.org/id/metropolitan-district-council/wolverhampton","ASDA GROCERIES ONLINE","-2.00","Duke Street Bungalows","5411","Provisions (Not for resale)","09/01/2019"
"Wolverhampton City Council","http://opendatacommunities.org/id/metropolitan-district-council/wolverhampton","ASDA GROCERIES ONLINE","-1.22","Duke Street Bungalows","5411","Provisions (Not for resale)","09/01/2019"
"Wolverhampton City Council","http://opendatacommunities.org/id/metropolitan-district-council/wolverhampton","ASDA GROCERIES ONLINE","207.94","Duke Street Bungalows","5411","Provisions (Not for resale)","09/01/2019"
"Wolverhampton City Council","http://opendatacommunities.org/id/metropolitan-district-council/wolverhampton","Virgin Trains","134.00","Mayoral Expenses","4112","Public Transport","09/01/2019"
"Wolverhampton City Council","http://opendatacommunities.org/id/metropolitan-district-council/wolverhampton","W M MORRISONS.COM","100.97","","5411","Provisions (Not for resale)","08/01/2019"
"Wolverhampton City Council","http://opendatacommunities.org/id/metropolitan-district-council/wolverhampton","WEBSTAFF/ATP PAYMENTS","37.00","Mayoral Expenses","9399","Services - Fees and Charges","08/01/2019"
"Wolverhampton City Council","http://opendatacommunities.org/id/metropolitan-district-council/wolverhampton","NAMESCO","34.99","City Direct","4816","Computing - Purchase of Software","08/01/2019"
"Wolverhampton City Council","http://opendatacommunities.org/id/metropolitan-district-council/wolverhampton","Virgin Trains","20.45","Strategic Financial Services","4112","Public Transport","08/01/2019"
"Wolverhampton City Council","http://opendatacommunities.org/id/metropolitan-district-council/wolverhampton","ASDA GEORGE COM LEEDS","-2.95","LAC Transitions Team","5411","Client Allowances","08/01/2019"
"Wolverhampton City Council","http://opendatacommunities.org/id/metropolitan-district-council/wolverhampton","WWW.ARGOS.CO.UK","180.77","LAC Transitions Team","5310","Client Allowances","08/01/2019"
"Wolverhampton City Council","http://opendatacommunities.org/id/metropolitan-district-council/wolverhampton","WWW.ARGOS.CO.UK","311.42","LAC Transitions Team","5310","Client Allowances","08/01/2019"
"Wolverhampton City Council","http://opendatacommunities.org/id/metropolitan-district-council/wolverhampton","CARVER/WOLVERHAMPTON/L","49.31","Culwell Street Depot","5211","Materials","08/01/2019"
"Wolverhampton City Council","http://opendatacommunities.org/id/metropolitan-district-council/wolverhampton","CARD FACTORY","75.00","Civic Centre Catering","5947","Comms - Postage","08/01/2019"
"Wolverhampton City Council","http://opendatacommunities.org/id/metropolitan-district-council/wolverhampton","Cross Country Trains","9.30","Head of Strategic Commissioning � People","4112","Public Transport","08/01/2019"
"Wolverhampton City Council","http://opendatacommunities.org/id/metropolitan-district-council/wolverhampton","ITUNES.COM/BILL","37.25","Learning Technologies","5735","Computing - Purchase of Software","08/01/2019"
"Wolverhampton City Council","http://opendatacommunities.org/id/metropolitan-district-council/wolverhampton","ITUNES.COM/BILL","37.25","Learning Technologies","5735","Computing - Purchase of Software","08/01/2019"
"Wolverhampton City Council","http://opendatacommunities.org/id/metropolitan-district-council/wolverhampton","ITUNES.COM/BILL","49.83","Learning Technologies","5735","Computing - Purchase of Software","08/01/2019"
"Wolverhampton City Council","http://opendatacommunities.org/id/metropolitan-district-council/wolverhampton","ITUNES.COM/BILL","55.58","Learning Technologies","5735","Computing - Purchase of Software","08/01/2019"
"Wolverhampton City Council","http://opendatacommunities.org/id/metropolitan-district-council/wolverhampton","ITUNES.COM/BILL","49.83","Learning Technologies","5735","Computing - Purchase of Software","08/01/2019"
"Wolverhampton City Council","http://opendatacommunities.org/id/metropolitan-district-council/wolverhampton","SAINSBURYS (2340)","29.72","LAC Transitions Team","5411","Client Allowances","08/01/2019"
"Wolverhampton City Council","http://opendatacommunities.org/id/metropolitan-district-council/wolverhampton","ASDA GROCERIES ONLINE","55.33","Ernest Bold Court","5411","Provisions (Not for resale)","08/01/2019"
"Wolverhampton City Council","http://opendatacommunities.org/id/metropolitan-district-council/wolverhampton","Trainline","53.16","CIN/CP Social Work Unit - Area 4","4112","Section 17","08/01/2019"
"Wolverhampton City Council","http://opendatacommunities.org/id/metropolitan-district-council/wolverhampton","LIDL UK WOLVERHAMPTON","8.09","Civic Centre Catering","5411","Provisions (Not for resale)","08/01/2019"
"Wolverhampton City Council","http://opendatacommunities.org/id/metropolitan-district-council/wolverhampton","SUPERCARDS","8.98","Car Parks Operational Staff","5947","Equipment - Purchase","08/01/2019"
"Wolverhampton City Council","http://opendatacommunities.org/id/metropolitan-district-council/wolverhampton","Trainline","36.12","Legal Services","4112","Public Transport","08/01/2019"
"Wolverhampton City Council","http://opendatacommunities.org/id/metropolitan-district-council/wolverhampton","POST OFFICE COUNTER","8.04","Street Cleansing Overheads","9402","Comms - Postage","08/01/2019"
"Wolverhampton City Council","http://opendatacommunities.org/id/metropolitan-district-council/wolverhampton","POST OFFICE COUNTER","13.92","Arbor Scheme","9402","Comms - Postage","08/01/2019"
"Wolverhampton City Council","http://opendatacommunities.org/id/metropolitan-district-council/wolverhampton","Trainline","9.92","CIN/CP Social Work Unit - Area 8","4112","Section 17","08/01/2019"
"Wolverhampton City Council","http://opendatacommunities.org/id/metropolitan-district-council/wolverhampton","ASDA STORE","14.90","Bradley Resource Centre","5411","Provisions (Not for resale)","07/01/2019"
"Wolverhampton City Council","http://opendatacommunities.org/id/metropolitan-district-council/wolverhampton","ARGOS RETAIL GROUP","-12.00","LAC Transitions Team","5310","Client Allowances","07/01/2019"
"Wolverhampton City Council","http://opendatacommunities.org/id/metropolitan-district-council/wolverhampton","IKEA LIMITED","15.21","LAC Transitions Team","5712","Client Allowances","07/01/2019"
"Wolverhampton City Council","http://opendatacommunities.org/id/metropolitan-district-council/wolverhampton","ARGOS RETAIL GROUP","283.81","LAC Transitions Team","5310","Client Allowances","07/01/2019"
"Wolverhampton City Council","http://opendatacommunities.org/id/metropolitan-district-council/wolverhampton","Cross Country Trains","59.25","Visitor Economy - Development","4112","Public Transport","07/01/2019"
"Wolverhampton City Council","http://opendatacommunities.org/id/metropolitan-district-council/wolverhampton","ROYAL CARPETS","66.67","LAC Transitions Team","5713","Client Allowances","07/01/2019"
"Wolverhampton City Council","http://opendatacommunities.org/id/metropolitan-district-council/wolverhampton","PIZZA HUT (538)","47.54","Art Gallery","5814","Educ Trips, Holidays, Outings, Activity","07/01/2019"
"Wolverhampton City Council","http://opendatacommunities.org/id/metropolitan-district-council/wolverhampton","UTILITA ENERGY LIMITED","20.83","EIP Locality 4","4900","Grant Payments","07/01/2019"
"Wolverhampton City Council","http://opendatacommunities.org/id/metropolitan-district-council/wolverhampton","WWW.ARGOS.CO.UK","145.92","Aldersley Leisure Village","5310","Equipment - Purchase","07/01/2019"
"Wolverhampton City Council","http://opendatacommunities.org/id/metropolitan-district-council/wolverhampton","RLSS UK","45.50","WV Active Business Support","8641","Educ Trips, Holidays, Outings, Activity","07/01/2019"
"Wolverhampton City Council","http://opendatacommunities.org/id/metropolitan-district-council/wolverhampton","POST OFFICE COUNTER","2.02","Fostering Team & Allowances","9402","Comms - Postage","07/01/2019"
"Wolverhampton City Council","http://opendatacommunities.org/id/metropolitan-district-council/wolverhampton","GOOGLE  ADS9680351324","500.00","Communications & Marketing - General","5968","Subscriptions","07/01/2019"
"Wolverhampton City Council","http://opendatacommunities.org/id/metropolitan-district-council/wolverhampton","AMZN Mktp UK MB5OM7N54","12.88","Communications & Marketing - General","5942","Books","07/01/2019"
"Wolverhampton City Council","http://opendatacommunities.org/id/metropolitan-district-council/wolverhampton","AMZN Mktp UK MB2ET9NF4","44.81","Bert Williams Leisure Centre","5942","Books","07/01/2019"
"Wolverhampton City Council","http://opendatacommunities.org/id/metropolitan-district-council/wolverhampton","AMZN Mktp UK MB2MG6LZ4","15.28","Bert Williams Leisure Centre","5942","Books","07/01/2019"
"Wolverhampton City Council","http://opendatacommunities.org/id/metropolitan-district-council/wolverhampton","NAMESCO","46.95","Communications & Marketing - General","4816","Computing - Purchase of Software","07/01/2019"
"Wolverhampton City Council","http://opendatacommunities.org/id/metropolitan-district-council/wolverhampton","Trainline","36.80","LAC Education Team (LACE)","4112","Public Transport","07/01/2019"
"Wolverhampton City Council","http://opendatacommunities.org/id/metropolitan-district-council/wolverhampton","PREMIER INN","178.33","Adoption and Residence Team & Allowances","3811","Services - Supplies & Services to users","07/01/2019"
"Wolverhampton City Council","http://opendatacommunities.org/id/metropolitan-district-council/wolverhampton","Virgin Trains","123.60","LAC Team","4112","Public Transport","07/01/2019"
"Wolverhampton City Council","http://opendatacommunities.org/id/metropolitan-district-council/wolverhampton","Amazon Prime","-0.42","Strategic ICTS (ICT Serv Budget)","5968","Subscriptions","07/01/2019"
"Wolverhampton City Council","http://opendatacommunities.org/id/metropolitan-district-council/wolverhampton","AMZN Mktp UK MB3VO0LT4","107.42","Central Baths","5942","Equipment - Purchase","07/01/2019"
"Wolverhampton City Council","http://opendatacommunities.org/id/metropolitan-district-council/wolverhampton","ASDA GROCERIES ONLINE","-20.10","Upper Pendeford Farm Childrens Home","5411","Provisions (Not for resale)","07/01/2019"
"Wolverhampton City Council","http://opendatacommunities.org/id/metropolitan-district-council/wolverhampton","ASDA GROCERIES ONLINE","167.90","Upper Pendeford Farm Childrens Home","5411","Provisions (Not for resale)","07/01/2019"
"Wolverhampton City Council","http://opendatacommunities.org/id/metropolitan-district-council/wolverhampton","SAINSBURYS (2340)","149.17","LAC Transitions Team","5411","Client Allowances","07/01/2019"
"Wolverhampton City Council","http://opendatacommunities.org/id/metropolitan-district-council/wolverhampton","Amazon.co.uk MB0RX8NW4","22.48","Archives","5969","Books","07/01/2019"
"Wolverhampton City Council","http://opendatacommunities.org/id/metropolitan-district-council/wolverhampton","WWW.CARESHOP.CO.UK","15.98","Ernest Bold Court","5999","Equipment - Purchase","07/01/2019"
"Wolverhampton City Council","http://opendatacommunities.org/id/metropolitan-district-council/wolverhampton","JAMES LISTER & SONS LT","44.42","Culwell Street Depot","5085","R&M - Departmental planned (external)","07/01/2019"
"Wolverhampton City Council","http://opendatacommunities.org/id/metropolitan-district-council/wolverhampton","HOME BARGAINS","21.05","EIP Locality 1","5251","Grant Payments","07/01/2019"
"Wolverhampton City Council","http://opendatacommunities.org/id/metropolitan-district-council/wolverhampton","POST OFFICE COUNTER","13.92","Youth Offending Team","9402","Comms - Postage","07/01/2019"
"Wolverhampton City Council","http://opendatacommunities.org/id/metropolitan-district-council/wolverhampton","SAINSBURYS 2040","7.75","EIP Locality 1","5411","Grant Payments","07/01/2019"
"Wolverhampton City Council","http://opendatacommunities.org/id/metropolitan-district-council/wolverhampton","WEST MID TRAVEL","446.90","Community Enablement","4131","Public Transport","07/01/2019"
"Wolverhampton City Council","http://opendatacommunities.org/id/metropolitan-district-council/wolverhampton","WWW.GOV.UK","10.00","Revenues","8999","Services - Professional Fees","07/01/2019"
"Wolverhampton City Council","http://opendatacommunities.org/id/metropolitan-district-council/wolverhampton","Virgin Trains","13.70","Children & Young People Support Costs","4112","Public Transport","07/01/2019"
"Wolverhampton City Council","http://opendatacommunities.org/id/metropolitan-district-council/wolverhampton","Virgin Trains","8.50","Children & Young People Support Costs","4112","Public Transport","07/01/2019"
"Wolverhampton City Council","http://opendatacommunities.org/id/metropolitan-district-council/wolverhampton","Wix.com","93.13","Technical Support","5817","Computing - Purchase of Software","07/01/2019"
"Wolverhampton City Council","http://opendatacommunities.org/id/metropolitan-district-council/wolverhampton","TVLICENSING.CO.UK","150.50","EIP Locality 1","7392","Services - Consultants","07/01/2019"
"Wolverhampton City Council","http://opendatacommunities.org/id/metropolitan-district-council/wolverhampton","Amazon Prime MB6NI7LX4","7.99","Education And Access","5968","Subscriptions","07/01/2019"
"Wolverhampton City Council","http://opendatacommunities.org/id/metropolitan-district-council/wolverhampton","ROYAL CARPETS","416.67","LAC Transitions Team","5713","Client Allowances","07/01/2019"
"Wolverhampton City Council","http://opendatacommunities.org/id/metropolitan-district-council/wolverhampton","ASDA GROCERIES ONLINE","0.06","Ernest Bold Court","5411","Provisions (Not for resale)","07/01/2019"
"Wolverhampton City Council","http://opendatacommunities.org/id/metropolitan-district-council/wolverhampton","ASDA GROCERIES ONLINE","54.52","Ernest Bold Court","5411","Provisions (Not for resale)","07/01/2019"
"Wolverhampton City Council","http://opendatacommunities.org/id/metropolitan-district-council/wolverhampton","VIRGIN MEDIS PYMTS","9.00","Community Enablement","4814","Comms - Telephone Call charges","07/01/2019"
"Wolverhampton City Council","http://opendatacommunities.org/id/metropolitan-district-council/wolverhampton","WEST MID TRAVEL","226.90","Specialist Support Service - North","4131","Public Transport","07/01/2019"
"Wolverhampton City Council","http://opendatacommunities.org/id/metropolitan-district-council/wolverhampton","POST OFFICE COUNTER","8.04","Adult Services - North","9402","Comms - Postage","07/01/2019"
"Wolverhampton City Council","http://opendatacommunities.org/id/metropolitan-district-council/wolverhampton","Amazon.co.uk MB1847NV4","67.99","Patching","5969","Books","07/01/2019"
"Wolverhampton City Council","http://opendatacommunities.org/id/metropolitan-district-council/wolverhampton","ROOKERY  Sainsburys B","100.00","Duke Street Bungalows","6011","Provisions (Not for resale)","07/01/2019"
"Wolverhampton City Council","http://opendatacommunities.org/id/metropolitan-district-council/wolverhampton","SAINSBURYS 2040","24.17","Duke Street Bungalows","5411","R4010","07/01/2019"
"Wolverhampton City Council","http://opendatacommunities.org/id/metropolitan-district-council/wolverhampton","NATWEST BANK","250.00","CAT","6011","No Recourse to Public Funds","07/01/2019"
"Wolverhampton City Council","http://opendatacommunities.org/id/metropolitan-district-council/wolverhampton","APPLE ONLINE STORE GBP","15.83","Strategic ICTS (ICT Serv Budget)","5732","Equipment - Purchase","07/01/2019"
"Wolverhampton City Council","http://opendatacommunities.org/id/metropolitan-district-council/wolverhampton","EBUYER (UK) LTD","56.65","Macmillan Welfare Rights","5722","Stationery","07/01/2019"
"Wolverhampton City Council","http://opendatacommunities.org/id/metropolitan-district-council/wolverhampton","THE COAL AUTHORITY","230.23","Disposal Costs","9399","Services - Bank Charges","07/01/2019"
"Wolverhampton City Council","http://opendatacommunities.org/id/metropolitan-district-council/wolverhampton","WWW.ICELAND.CO.UK","44.81","","5411","Provisions (Not for resale)","04/01/2019"
"Wolverhampton City Council","http://opendatacommunities.org/id/metropolitan-district-council/wolverhampton","WARLEY WINES","8.69","Bradley Resource Centre","5411","Provisions (Not for resale)","04/01/2019"
"Wolverhampton City Council","http://opendatacommunities.org/id/metropolitan-district-council/wolverhampton","PEACOCK STORES","23.37","LAC Transitions Team","5331","Client Allowances","04/01/2019"
"Wolverhampton City Council","http://opendatacommunities.org/id/metropolitan-district-council/wolverhampton","WWW.ARGOS.CO.UK","36.94","Bradley Resource Centre","5310","Equipment - Purchase","04/01/2019"
"Wolverhampton City Council","http://opendatacommunities.org/id/metropolitan-district-council/wolverhampton","000002200500000","250.00","CIN/CP Social Work Unit - Area 6","6011","Financial Assistance In Exceptional Circ","04/01/2019"
"Wolverhampton City Council","http://opendatacommunities.org/id/metropolitan-district-council/wolverhampton","PREMIER INN","173.33","Fostering Team & Allowances","3811","Services - Supplies & Services to users","04/01/2019"
"Wolverhampton City Council","http://opendatacommunities.org/id/metropolitan-district-council/wolverhampton","GINGER RAY LTD","10.54","WV Active Marketing","5300","Equipment - Purchase","04/01/2019"
"Wolverhampton City Council","http://opendatacommunities.org/id/metropolitan-district-council/wolverhampton","HMCOURTS-SERVICE.G","75.00","Mental Health Assessment & Care Mgmt","9222","Services - Fees and Charges","04/01/2019"
"Wolverhampton City Council","http://opendatacommunities.org/id/metropolitan-district-council/wolverhampton","AMZN Mktp UK MB9QR7FI4","19.95","Bert Williams Leisure Centre","5942","Books","04/01/2019"
"Wolverhampton City Council","http://opendatacommunities.org/id/metropolitan-district-council/wolverhampton","AMZN Mktp UK MB9KU3FH4","12.99","Bert Williams Leisure Centre","5942","Books","04/01/2019"
"Wolverhampton City Council","http://opendatacommunities.org/id/metropolitan-district-council/wolverhampton","Virgin Trains","207.00","Strategic Financial Services","4112","Public Transport","04/01/2019"
"Wolverhampton City Council","http://opendatacommunities.org/id/metropolitan-district-council/wolverhampton","AMZN Mktp UK MB1YV54B4","11.67","Intensive Family Support Team","5942","Books","04/01/2019"
"Wolverhampton City Council","http://opendatacommunities.org/id/metropolitan-district-council/wolverhampton","NPOWER","84.97","LAC Transitions Team","4900","Client Allowances","04/01/2019"
"Wolverhampton City Council","http://opendatacommunities.org/id/metropolitan-district-council/wolverhampton","RIBA SERVICES","144.20","Capital Programme Team","5942","Books","04/01/2019"
"Wolverhampton City Council","http://opendatacommunities.org/id/metropolitan-district-council/wolverhampton","THE MAKATON CHARIT","275.80","Learning Technologies","8299","Training Expenses","04/01/2019"
"Wolverhampton City Council","http://opendatacommunities.org/id/metropolitan-district-council/wolverhampton","Amazon.co.uk MB8L314H4","12.70","Global Budgets","5969","Books","04/01/2019"
"Wolverhampton City Council","http://opendatacommunities.org/id/metropolitan-district-council/wolverhampton","THE POST OFFICE","20.10","EIP Locality 3","9402","Comms - Postage","04/01/2019"
"Wolverhampton City Council","http://opendatacommunities.org/id/metropolitan-district-council/wolverhampton","WILKO RETAIL LIMIT","132.08","LAC Transitions Team","5722","Client Allowances","04/01/2019"
"Wolverhampton City Council","http://opendatacommunities.org/id/metropolitan-district-council/wolverhampton","KENT MEDICAL SECRETARI","900.00","City Centre","7339","Services - Professional Fees","04/01/2019"
"Wolverhampton City Council","http://opendatacommunities.org/id/metropolitan-district-council/wolverhampton","NATWEST BANK","250.00","CAT","6011","No Recourse to Public Funds","04/01/2019"
"Wolverhampton City Council","http://opendatacommunities.org/id/metropolitan-district-council/wolverhampton","WWW.ARGOS.CO.UK","149.99","CIN/CP Social Work Unit - Area 4","5310","Section 17","04/01/2019"
"Wolverhampton City Council","http://opendatacommunities.org/id/metropolitan-district-council/wolverhampton","PREMIER INN","328.33","Adoption and Residence Team & Allowances","3811","Accommodation Costs","04/01/2019"
"Wolverhampton City Council","http://opendatacommunities.org/id/metropolitan-district-council/wolverhampton","Virgin Trains","121.40","Members Expenses","4112","Public Transport","04/01/2019"
"Wolverhampton City Council","http://opendatacommunities.org/id/metropolitan-district-council/wolverhampton","Trainline","44.09","Research & Development","4112","Public Transport","03/01/2019"
"Wolverhampton City Council","http://opendatacommunities.org/id/metropolitan-district-council/wolverhampton","WWW.ARGOS.CO.UK","45.82","LAC Transitions Team","5310","Independant Living Allowance","03/01/2019"
"Wolverhampton City Council","http://opendatacommunities.org/id/metropolitan-district-council/wolverhampton","WWW.ARGOS.CO.UK","55.78","LAC Transitions Team","5310","Independant Living Allowance","03/01/2019"
"Wolverhampton City Council","http://opendatacommunities.org/id/metropolitan-district-council/wolverhampton","POST OFFICE COUNTER","490.00","Head of Service - LAC","9402","Comms - Postage","03/01/2019"
"Wolverhampton City Council","http://opendatacommunities.org/id/metropolitan-district-council/wolverhampton","Virgin Trains","216.30","Fostering Team & Allowances","4112","Public Transport","03/01/2019"
"Wolverhampton City Council","http://opendatacommunities.org/id/metropolitan-district-council/wolverhampton","ASDA SUPERSTORE","37.85","Mayoral Expenses","5411","Hospitality","03/01/2019"
"Wolverhampton City Council","http://opendatacommunities.org/id/metropolitan-district-council/wolverhampton","AMZN Mktp UK MB7LH5FX4","7.88","Strategic ICTS (ICT Serv Budget)","5942","Computing - Purchase of Hardware","03/01/2019"
"Wolverhampton City Council","http://opendatacommunities.org/id/metropolitan-district-council/wolverhampton","Amazon Prime M21DA0R34","0.82","Strategic ICTS (ICT Serv Budget)","5968","Subscriptions","03/01/2019"
"Wolverhampton City Council","http://opendatacommunities.org/id/metropolitan-district-council/wolverhampton","AMZN Mktp UK MB37R1F54","14.59","Strategic ICTS (ICT Serv Budget)","5942","Computing - Purchase of Hardware","03/01/2019"
"Wolverhampton City Council","http://opendatacommunities.org/id/metropolitan-district-council/wolverhampton","CITY OF WOLVERHAMPTON","35.00","Legal Services","9399","Services - Fees and Charges","03/01/2019"
"Wolverhampton City Council","http://opendatacommunities.org/id/metropolitan-district-council/wolverhampton","AMZ Crafty Arts","-10.74","Education And Access","5999","Materials","03/01/2019"
"Wolverhampton City Council","http://opendatacommunities.org/id/metropolitan-district-council/wolverhampton","Virgin Trains","64.50","LAC Team","4112","Public Transport","03/01/2019"
"Wolverhampton City Council","http://opendatacommunities.org/id/metropolitan-district-council/wolverhampton","ASDA GROCERIES ONLINE","-0.10","Ernest Bold Court","5411","Provisions (Not for resale)","03/01/2019"
"Wolverhampton City Council","http://opendatacommunities.org/id/metropolitan-district-council/wolverhampton","ASDA GROCERIES ONLINE","71.93","Ernest Bold Court","5411","Provisions (Not for resale)","03/01/2019"
"Wolverhampton City Council","http://opendatacommunities.org/id/metropolitan-district-council/wolverhampton","CITY OF WOLVERHAMPTON","45.00","Court Team","9399","Section 17","03/01/2019"
"Wolverhampton City Council","http://opendatacommunities.org/id/metropolitan-district-council/wolverhampton","Trainline","35.46","CIN/CP Social Work Unit - Area 4","4112","Section 17","03/01/2019"
"Wolverhampton City Council","http://opendatacommunities.org/id/metropolitan-district-council/wolverhampton","Trainline","9.92","CIN/CP Social Work Unit - Area 8","4112","Section 17","03/01/2019"
"Wolverhampton City Council","http://opendatacommunities.org/id/metropolitan-district-council/wolverhampton","WWW.ICO.GOV.UK","40.00","Members Expenses","9399","Subscriptions","03/01/2019"
"Wolverhampton City Council","http://opendatacommunities.org/id/metropolitan-district-council/wolverhampton","Virgin Trains","184.00","Members Expenses","4112","Public Transport","03/01/2019"
"Wolverhampton City Council","http://opendatacommunities.org/id/metropolitan-district-council/wolverhampton","FACEBK PZ9L2J2H52","139.43","The Little Civic","7311","Marketing \ Non-staff advertising","01/01/2019"
"Wolverhampton City Council","http://opendatacommunities.org/id/metropolitan-district-council/wolverhampton","WWW.ARGOS.CO.UK","-53.29","LAC Transitions Team","5310","Independant Living Allowance","01/01/2019"
"Wolverhampton City Council","http://opendatacommunities.org/id/metropolitan-district-council/wolverhampton","WWW.ARGOS.CO.UK","53.29","LAC Transitions Team","5310","Independant Living Allowance","01/01/2019"
"Wolverhampton City Council","http://opendatacommunities.org/id/metropolitan-district-council/wolverhampton","WWW.ARGOS.CO.UK","53.29","LAC Transitions Team","5310","Independant Living Allowance","01/01/2019"
"Wolverhampton City Council","http://opendatacommunities.org/id/metropolitan-district-council/wolverhampton","WWW.IKEA.COM","65.79","LAC Transitions Team","5712","Independant Living Allowance","01/01/2019"
"Wolverhampton City Council","http://opendatacommunities.org/id/metropolitan-district-council/wolverhampton","000002200500000","250.00","Childrens with Disabilities Team","6011","No Recourse to Public Funds","01/01/2019"
"Wolverhampton City Council","http://opendatacommunities.org/id/metropolitan-district-council/wolverhampton","FACEBK  4TZY4KWAR2","114.24","Communications & Marketing - General","7311","Marketing \ Non-staff advertising","01/01/2019"
"Wolverhampton City Council","http://opendatacommunities.org/id/metropolitan-district-council/wolverhampton","AMZN Mktp UK M25O18YT4","32.16","Education And Access","5942","Books","01/01/2019"
"Wolverhampton City Council","http://opendatacommunities.org/id/metropolitan-district-council/wolverhampton","HUGHES","500.00","LAC Transitions Team","5732","Client Allowances","01/01/2019"
"Wolverhampton City Council","http://opendatacommunities.org/id/metropolitan-district-council/wolverhampton","POST OFFICE COUNTER","6.00","Adoption and Residence Team & Allowances","9402","Comms - Postage","01/01/2019"
